Workbook

Sheet Gen_Average (hidden)
A1: hour | B1: month | C1: P | F1: Average daily generation Wh/h per 5 kWp
A2: 12:10:00 | B2: 1 | C2: 0 | D2: 00:00:00 | F2: From: | G2: Wuebben & Peters, Communicating the Values and Benefits of Home Solar Prosumerism, Energies (2022) 15(2) | P2: https://doi.org/10.3390/en15020596
A3: 01:09:00 | B3: 1 | C3: 0 | D3: 01:00:00
A4: 02:10:00 | B4: 1 | C4: 0 | D4: 02:00:00
A5: 03:10:00 | B5: 1 | C5: 0 | D5: 03:00:00
A6: 04:09:00 | B6: 1 | C6: 0 | D6: 04:00:00
A7: 05:10:00 | B7: 1 | C7: 0 | D7: 05:00:00
A8: 06:10:00 | B8: 1 | C8: 0 | D8: 06:00:00
A9: 07:09:00 | B9: 1 | C9: 0 | D9: 07:00:00
A10: 08:10:00 | B10: 1 | C10: 551.13602 | D10: 08:00:00
A11: 09:10:00 | B11: 1 | C11: 1530.5476 | D11: 09:00:00
A12: 10:09:00 | B12: 1 | C12: 2126.2653 | D12: 10:00:00
A13: 11:10:00 | B13: 1 | C13: 2524.3653 | D13: 11:00:00
A14: 12:10:00 | B14: 1 | C14: 2618.8476 | D14: 12:00:00
A15: 01:09:00 | B15: 1 | C15: 2522.5981 | D15: 13:00:00
A16: 02:10:00 | B16: 1 | C16: 2052.2817 | D16: 14:00:00
A17: 03:10:00 | B17: 1 | C17: 1577.1417 | D17: 15:00:00
A18: 04:09:00 | B18: 1 | C18: 870.81774 | D18: 16:00:00
A19: 05:10:00 | B19: 1 | C19: 0.52392473 | D19: 17:00:00
A20: 06:10:00 | B20: 1 | C20: 0 | D20: 18:00:00
A21: 07:09:00 | B21: 1 | C21: 0 | D21: 19:00:00
A22: 08:10:00 | B22: 1 | C22: 0 | D22: 20:00:00
A23: 09:10:00 | B23: 1 | C23: 0 | D23: 21:00:00
A24: 10:09:00 | B24: 1 | C24: 0 | D24: 22:00:00 | G24: Sources for PV generation data:
A25: 11:10:00 | B25: 1 | C25: 0 | D25: 23:00:00 | H25: PVGIS
A26: 12:10:00 | B26: 2 | C26: 0 | H26: Helioscope
A27: 01:09:00 | B27: 2 | C27: 0
A28: 02:10:00 | B28: 2 | C28: 0
A29: 03:10:00 | B29: 2 | C29: 0
A30: 04:09:00 | B30: 2 | C30: 0
A31: 05:10:00 | B31: 2 | C31: 0
A32: 06:10:00 | B32: 2 | C32: 0 | F32: P_ipol1 | G32: P_ipol2 | H32: P_ipol3 | I32: P_ipol4 | J32: P_ipol5 | K32: P_ipol6 | L32: P_ipol7 | M32: P_ipol8 | N32: P_ipol9 | O32: P_ipol10 | P32: P_ipol11 | Q32: P_ipol12
A33: 07:09:00 | B33: 2 | C33: 0.50705882 | E33: 1 | F33: 0 | G33: 0 | H33: 0 | I33: 0 | J33: 0 | K33: 0 | L33: 0 | M33: 0 | N33: 0 | O33: 0 | P33: 0 | Q33: 0
A34: 08:10:00 | B34: 2 | C34: 927.42676 | E34: 2 | F34: 0 | G34: 0 | H34: 0 | I34: 0 | J34: 0 | K34: 0 | L34: 0 | M34: 0 | N34: 0 | O34: 0 | P34: 0 | Q34: 0
A35: 09:10:00 | B35: 2 | C35: 1771.0929 | E35: 3 | F35: 0 | G35: 0 | H35: 0 | I35: 0 | J35: 0 | K35: 0 | L35: 0 | M35: 0 | N35: 0 | O35: 0 | P35: 0 | Q35: 0
A36: 10:09:00 | B36: 2 | C36: 2442.0774 | E36: 4 | F36: 0 | G36: 0 | H36: 0 | I36: 0 | J36: 0 | K36: 0 | L36: 0 | M36: 0 | N36: 0 | O36: 0 | P36: 0 | Q36: 0
A37: 11:10:00 | B37: 2 | C37: 2847.1768 | E37: 5 | F37: 0 | G37: 0 | H37: 0 | I37: 0 | J37: 0.33171442 | K37: 7.2535497 | L37: 0.23560392 | M37: 0 | N37: 0 | O37: 0 | P37: 0 | Q37: 0
A38: 12:10:00 | B38: 2 | C38: 2865.7503 | E38: 6 | F38: 0 | G38: 0 | H38: 0 | I38: 20.383532 | J38: 78.302559 | K38: 95.614242 | L38: 59.676632 | M38: 33.729239 | N38: 4.9260265 | O38: 0 | P38: 0 | Q38: 0
A39: 01:09:00 | B39: 2 | C39: 2804.4732 | E39: 7 | F39: 0 | G39: 0.17050395 | H39: 114.68979 | I39: 295.87892 | J39: 472.3171 | K39: 488.0807 | L39: 412.24706 | M39: 348.19052 | N39: 268.8923 | O39: 159.4125 | P39: 3.3356858 | Q39: 0
A40: 02:10:00 | B40: 2 | C40: 2478.8012 | E40: 8 | F40: 187.63279 | G40: 317.22033 | H40: 671.27613 | I40: 1041.7147 | J40: 1279.9471 | K40: 1290.7033 | L40: 1220.3035 | M40: 1170.0544 | N40: 1084.9299 | O40: 770.56508 | P40: 319.64571 | Q40: 221.7686
A41: 03:10:00 | B41: 2 | C41: 1929.0968 | E41: 9 | F41: 877.48696 | G41: 1205.3232 | H41: 1589.1883 | I41: 1847.085 | J41: 2092.3475 | K41: 2111.3353 | L41: 2107.2196 | M41: 2089.9195 | N41: 1979.8402 | O41: 1634.1941 | P41: 1179.6554 | Q41: 1010.6186
A42: 04:09:00 | B42: 2 | C42: 1227.6303 | E42: 10 | F42: 1719.7505 | G42: 1991.9439 | H42: 2266.6891 | I42: 2477.4391 | J42: 2674.3778 | K42: 2756.5407 | L42: 2803.5036 | M42: 2841.6312 | N42: 2666.0501 | O42: 2339.1496 | P42: 1936.132 | Q42: 1930.6657
A43: 05:10:00 | B43: 2 | C43: 306.94618 | E43: 11 | F43: 2249.644 | G43: 2574.2046 | H43: 2657.5677 | I43: 2885.4239 | J43: 3106.0648 | K43: 3145.6718 | L43: 3268.8706 | M43: 3346.177 | N43: 3120.3311 | O43: 2792.9768 | P43: 2430.6104 | Q43: 2487.1258
A44: 06:10:00 | B44: 2 | C44: 0 | E44: 12 | F44: 2550.2903 | G44: 2851.884 | H44: 2827.3025 | I44: 3099.5763 | J44: 3308.2644 | K44: 3346.4104 | L44: 3512.2285 | M44: 3581.2568 | N44: 3296.4296 | O44: 2993.1081 | P44: 2519.2784 | Q44: 2761.0708
A45: 07:09:00 | B45: 2 | C45: 0 | E45: 13 | F45: 2584.7067 | G45: 2842.9732 | H45: 2819.1566 | I45: 3060.8621 | J45: 3233.1831 | K45: 3343.4899 | L45: 3549.7334 | M45: 3599.5408 | N45: 3291.1968 | O45: 2914.6225 | P45: 2438.4592 | Q45: 2703.6854
A46: 08:10:00 | B46: 2 | C46: 0 | E46: 14 | F46: 2364.0603 | G46: 2698.4025 | H46: 2689.3334 | I46: 2841.2141 | J46: 2986.6522 | K46: 3102.6892 | L46: 3340.8081 | M46: 3373.1498 | N46: 3047.0866 | O46: 2542.2367 | P46: 2167.0714 | Q46: 2431.6136
A47: 09:10:00 | B47: 2 | C47: 0 | E47: 15 | F47: 1897.897 | G47: 2314.9329 | H47: 2255.3108 | I47: 2399.4897 | J47: 2544.4932 | K47: 2719.1452 | L47: 2861.446 | M47: 2883.8053 | N47: 2555.7603 | O47: 2085.5145 | P47: 1726.9121 | Q47: 1926.4216
A48: 10:09:00 | B48: 2 | C48: 0 | E48: 16 | F48: 1344.8066 | G48: 1709.8407 | H48: 1725.7077 | I48: 1838.558 | J48: 1913.7608 | K48: 2122.8201 | L48: 2240.5404 | M48: 2228.5049 | N48: 1861.9386 | O48: 1443.3028 | P48: 1054.0994 | Q48: 1221.2878
A49: 11:10:00 | B49: 2 | C49: 0 | E49: 17 | F49: 582.97539 | G49: 923.87093 | H49: 1014.4171 | I49: 1108.7415 | J49: 1175.0502 | K49: 1349.5762 | L49: 1437.6506 | M49: 1377.1095 | N49: 1025.3084 | O49: 644.04228 | P49: 359.55307 | Q49: 411.44859
A50: 12:10:00 | B50: 3 | C50: 0 | E50: 18 | F50: 13.632409 | G50: 215.34123 | H50: 359.90509 | I50: 422.51803 | J50: 504.97162 | K50: 591.21882 | L50: 609.31608 | M50: 538.80617 | N50: 302.01894 | O50: 71.740738 | P50: 6.5625257 | Q50: 9.042998
A51: 01:09:00 | B51: 3 | C51: 0 | E51: 19 | F51: 0.00837958 | G51: 4.6530887 | H51: 12.529369 | I51: 58.629051 | J51: 125.84972 | K51: 169.68941 | L51: 136.22747 | M51: 92.011378 | N51: 17.514011 | O51: 1.4416134 | P51: 0 | Q51: 0
A52: 02:10:00 | B52: 3 | C52: 0 | E52: 20 | F52: 0 | G52: 0 | H52: 0.10645436 | I52: 1.1771624 | J52: 6.6533448 | K52: 33.82639 | L52: 31.797186 | M52: 2.2891904 | N52: 0.25700943 | O52: 0 | P52: 0 | Q52: 0
A53: 03:10:00 | B53: 3 | C53: 0 | E53: 21 | F53: 0 | G53: 0 | H53: 0 | I53: 0 | J53: 0.08895284 | K53: 0.75046361 | L53: 0.70089804 | M53: 0.01019124 | N53: 0 | O53: 0 | P53: 0 | Q53: 0
A54: 04:09:00 | B54: 3 | C54: 0 | E54: 22 | F54: 0 | G54: 0 | H54: 0 | I54: 0 | J54: 0 | K54: 0 | L54: 0 | M54: 0 | N54: 0 | O54: 0 | P54: 0 | Q54: 0
A55: 05:10:00 | B55: 3 | C55: 0 | F55: 0 | G55: 0 | H55: 0 | I55: 0 | J55: 0 | K55: 0 | L55: 0 | M55: 0 | N55: 0 | O55: 0 | P55: 0 | Q55: 0
A56: 06:10:00 | B56: 3 | C56: 0 | F56: 0 | G56: 0 | H56: 0 | I56: 0 | J56: 0 | K56: 0 | L56: 0 | M56: 0 | N56: 0 | O56: 0 | P56: 0 | Q56: 0
A57: 07:09:00 | B57: 3 | C57: 336.95565
A58: 08:10:00 | B58: 3 | C58: 1333.5597
A59: 09:10:00 | B59: 3 | C59: 2127.4355
A60: 10:09:00 | B60: 3 | C60: 2571.7745
A61: 11:10:00 | B61: 3 | C61: 2844.3395
A62: 12:10:00 | B62: 3 | C62: 2806.9056
A63: 01:09:00 | B63: 3 | C63: 2841.0223
A64: 02:10:00 | B64: 3 | C64: 2397.193
A65: 03:10:00 | B65: 3 | C65: 1960.4841
A66: 04:09:00 | B66: 3 | C66: 1249.7505
A67: 05:10:00 | B67: 3 | C67: 525.27339
A68: 06:10:00 | B68: 3 | C68: 7.0067204
A69: 07:09:00 | B69: 3 | C69: 0
A70: 08:10:00 | B70: 3 | C70: 0
A71: 09:10:00 | B71: 3 | C71: 0
A72: 10:09:00 | B72: 3 | C72: 0
A73: 11:10:00 | B73: 3 | C73: 0
A74: 12:10:00 | B74: 4 | C74: 0
A75: 01:09:00 | B75: 4 | C75: 0
A76: 02:10:00 | B76: 4 | C76: 0
A77: 03:10:00 | B77: 4 | C77: 0
A78: 04:09:00 | B78: 4 | C78: 0
A79: 05:10:00 | B79: 4 | C79: 0
A80: 06:10:00 | B80: 4 | C80: 70.551111
A81: 07:09:00 | B81: 4 | C81: 790.91806
A82: 08:10:00 | B82: 4 | C82: 1635.5892
A83: 09:10:00 | B83: 4 | C83: 2340.0469
A84: 10:09:00 | B84: 4 | C84: 2789.1097
A85: 11:10:00 | B85: 4 | C85: 3104.5242
A86: 12:10:00 | B86: 4 | C86: 3117.1106
A87: 01:09:00 | B87: 4 | C87: 3030.4536
A88: 02:10:00 | B88: 4 | C88: 2584.6786
A89: 03:10:00 | B89: 4 | C89: 2104.5094
A90: 04:09:00 | B90: 4 | C90: 1371.3744
A91: 05:10:00 | B91: 4 | C91: 586.19444
A92: 06:10:00 | B92: 4 | C92: 83.670278
A93: 07:09:00 | B93: 4 | C93: 0
A94: 08:10:00 | B94: 4 | C94: 0
A95: 09:10:00 | B95: 4 | C95: 0
A96: 10:09:00 | B96: 4 | C96: 0
A97: 11:10:00 | B97: 4 | C97: 0
A98: 12:10:00 | B98: 5 | C98: 0
A99: 01:09:00 | B99: 5 | C99: 0
A100: 02:10:00 | B100: 5 | C100: 0
A101: 03:10:00 | B101: 5 | C101: 0
A102: 04:09:00 | B102: 5 | C102: 0
A103: 05:10:00 | B103: 5 | C103: 0.9766129
A104: 06:10:00 | B104: 5 | C104: 216.36532
A105: 07:09:00 | B105: 5 | C105: 978.91183
A106: 08:10:00 | B106: 5 | C106: 1898.4723
A107: 09:10:00 | B107: 5 | C107: 2514.8376
A108: 10:09:00 | B108: 5 | C108: 3006.821
A109: 11:10:00 | B109: 5 | C109: 3329.5196
A110: 12:10:00 | B110: 5 | C110: 3304.2306
A111: 01:09:00 | B111: 5 | C111: 3078.4876
A112: 02:10:00 | B112: 5 | C112: 2721.2355
A113: 03:10:00 | B113: 5 | C113: 2137.1847
A114: 04:09:00 | B114: 5 | C114: 1410.4218
A115: 05:10:00 | B115: 5 | C115: 662.5629
A116: 06:10:00 | B116: 5 | C116: 176.90376
A117: 07:09:00 | B117: 5 | C117: 5.8849462
A118: 08:10:00 | B118: 5 | C118: 0
A119: 09:10:00 | B119: 5 | C119: 0
A120: 10:09:00 | B120: 5 | C120: 0
A121: 11:10:00 | B121: 5 | C121: 0
A122: 12:10:00 | B122: 6 | C122: 0
A123: 01:09:00 | B123: 6 | C123: 0
A124: 02:10:00 | B124: 6 | C124: 0
A125: 03:10:00 | B125: 6 | C125: 0
A126: 04:09:00 | B126: 6 | C126: 0
A127: 05:10:00 | B127: 6 | C127: 21.090278
A128: 06:10:00 | B128: 6 | C128: 227.99667
A129: 07:09:00 | B129: 6 | C129: 1003.5508
A130: 08:10:00 | B130: 6 | C130: 1882.4658
A131: 09:10:00 | B131: 6 | C131: 2583.7281
A132: 10:09:00 | B132: 6 | C132: 3073.1686
A133: 11:10:00 | B133: 6 | C133: 3313.7217
A134: 12:10:00 | B134: 6 | C134: 3415.1569
A135: 01:09:00 | B135: 6 | C135: 3215.1106
A136: 02:10:00 | B136: 6 | C136: 2886.6222
A137: 03:10:00 | B137: 6 | C137: 2347.4375
A138: 04:09:00 | B138: 6 | C138: 1627.8231
A139: 05:10:00 | B139: 6 | C139: 765.54333
A140: 06:10:00 | B140: 6 | C140: 219.40361
A141: 07:09:00 | B141: 6 | C141: 46.718611
A142: 08:10:00 | B142: 6 | C142: 0
A143: 09:10:00 | B143: 6 | C143: 0
A144: 10:09:00 | B144: 6 | C144: 0
A145: 11:10:00 | B145: 6 | C145: 0
A146: 12:10:00 | B146: 7 | C146: 0
A147: 01:09:00 | B147: 7 | C147: 0
A148: 02:10:00 | B148: 7 | C148: 0
A149: 03:10:00 | B149: 7 | C149: 0
A150: 04:09:00 | B150: 7 | C150: 0
A151: 05:10:00 | B151: 7 | C151: 0.67016129
A152: 06:10:00 | B152: 7 | C152: 159.22419
A153: 07:09:00 | B153: 7 | C153: 909.34651
A154: 08:10:00 | B154: 7 | C154: 1856.9868
A155: 09:10:00 | B155: 7 | C155: 2628.7769
A156: 10:09:00 | B156: 7 | C156: 3170.8043
A157: 11:10:00 | B157: 7 | C157: 3489.3185
A158: 12:10:00 | B158: 7 | C158: 3590.3753
A159: 01:09:00 | B159: 7 | C159: 3496.9785
A160: 02:10:00 | B160: 7 | C160: 3053.8417
A161: 03:10:00 | B161: 7 | C161: 2485.7054
A162: 04:09:00 | B162: 7 | C162: 1731.4452
A163: 05:10:00 | B163: 7 | C163: 825.21909
A164: 06:10:00 | B164: 7 | C164: 165.93172
A165: 07:09:00 | B165: 7 | C165: 43.171237
A166: 08:10:00 | B166: 7 | C166: 0
A167: 09:10:00 | B167: 7 | C167: 0
A168: 10:09:00 | B168: 7 | C168: 0
A169: 11:10:00 | B169: 7 | C169: 0
A170: 12:10:00 | B170: 8 | C170: 0
A171: 01:09:00 | B171: 8 | C171: 0
A172: 02:10:00 | B172: 8 | C172: 0
A173: 03:10:00 | B173: 8 | C173: 0
A174: 04:09:00 | B174: 8 | C174: 0
A175: 05:10:00 | B175: 8 | C175: 0
A176: 06:10:00 | B176: 8 | C176: 90.993817
A177: 07:09:00 | B177: 8 | C177: 851.02231
A178: 08:10:00 | B178: 8 | C178: 1820.5481
A179: 09:10:00 | B179: 8 | C179: 2633.5315
A180: 10:09:00 | B180: 8 | C180: 3252.3401
A181: 11:10:00 | B181: 8 | C181: 3548.6551
A182: 12:10:00 | B182: 8 | C182: 3622.6556
A183: 01:09:00 | B183: 8 | C183: 3504.9941
A184: 02:10:00 | B184: 8 | C184: 3069.8403
A185: 03:10:00 | B185: 8 | C185: 2469.2444
A186: 04:09:00 | B186: 8 | C186: 1671.2978
A187: 05:10:00 | B187: 8 | C187: 731.48172
A188: 06:10:00 | B188: 8 | C188: 123.52016
A189: 07:09:00 | B189: 8 | C189: 0.69946237
A190: 08:10:00 | B190: 8 | C190: 0
A191: 09:10:00 | B191: 8 | C191: 0
A192: 10:09:00 | B192: 8 | C192: 0
A193: 11:10:00 | B193: 8 | C193: 0
A194: 12:10:00 | B194: 9 | C194: 0
A195: 01:09:00 | B195: 9 | C195: 0
A196: 02:10:00 | B196: 9 | C196: 0
A197: 03:10:00 | B197: 9 | C197: 0
A198: 04:09:00 | B198: 9 | C198: 0
A199: 05:10:00 | B199: 9 | C199: 0
A200: 06:10:00 | B200: 9 | C200: 13.285278
... 89 more rows

Sheet Title
B2: SUPPLEMENTARY INFORMATION S2
B4: Hourly marginal electricity mixes and their relevance for assessing the environmental performance of installations with variable load or power
B6: Jens F. Peters1,2, Diego Iribarren2, Pedro Juez Martel3, Mercedes Burguillo1
B8: 1 University of Alcalá (UAH), Department of Economics, Alcalá de Henares, Madrid, Spain
B9: 2 Systems Analysis Unit, IMDEA Energy, Móstoles, Spain
B10: 3 Department of Applied Economics, Universidad Nacional de Educación a Distancia, Madrid, Spain
B13: This calculation sheet contains the calculation of the benefit of a PV installation in Central Spain applying the hourla average and marginal impacts of the grid electricity
B14: The PV generation profile can be modified for assessing other installations with dynamic load profiles

Sheet Calculator
A1: =CONCATENATE("PV gen. - ",A3) -> PV gen. - Jan | B1: =CONCATENATE("PV gen. - ",B3) -> PV gen. - Feb | C1: PV gen. - Mar | D1: PV gen. - Apr | E1: PV gen. - May | F1: PV gen. - Jun | G1: PV gen. - Jul | H1: PV gen. - Aug | I1: PV gen. - Sep | J1: PV gen. - Oct | K1: PV gen. - Nov | L1: PV gen. - Dec | Q1: 31 | R1: 28 | S1: 31 | T1: 30 | U1: 31 | V1: 30 | W1: 31 | X1: 31 | Y1: 30 | Z1: 31 | AA1: 30 | AB1: 31 | AC1: =SUM(Q1:AB1) -> 365 | AH1: =Q1 -> 31 | AI1: =R1 -> 28 | AJ1: 31 | AK1: 30 | AL1: 31 | AM1: 30 | AN1: 31 | AO1: 31 | AP1: 30 | AQ1: 31 | AR1: 30 | AS1: 31 | AT1: =SUM(AH1:AS1) -> 365 | AY1: =AH1 -> 31 | AZ1: =AI1 -> 28 | BA1: 31 | BB1: 30 | BC1: 31 | BD1: 30 | BE1: 31 | BF1: 31 | BG1: 30 | BH1: 31 | BI1: 30 | BJ1: 31 | BK1: =SUM(AY1:BJ1) -> 365
A2: =CONCATENATE("Generation for ",ROUND(M36,2)," kWp PV rooftop at optimal inclination") -> Generation for 1 kWp PV rooftop at optimal inclination | O2: Figure4 | P2: TIER 1 | Q2: Hourly emissions [gCO2eq/kWh] - average mix | AC2: average emissions [gCO2eq/kWh] | AF2: Figure6 | AG2: TIER 2 | AH2: Hourly marginal emissions [gCO2eq/kWh] | AT2: marginal emissions (gCO2eq/kWh) | AX2: TIER 1 | AY2: Hourly emissions [kgCO2/kWh] - average values from 2021 - using REE CO2 intensity acc. To REE data
A3: Jan | B3: Feb | C3: Mar | D3: Apr | E3: May | F3: Jun | G3: Jul | H3: Aug | I3: Sep | J3: Oct | K3: Nov | L3: Dec | P3: hour | Q3: Jan | R3: Feb | S3: Mar | T3: Apr | U3: May | V3: Jun | W3: Jul | X3: Aug | Y3: Sep | Z3: Oct | AA3: Nov | AB3: Dec | AG3: hour | AH3: =Q3 -> Jan | AI3: =R3 -> Feb | AJ3: Mar | AK3: Apr | AL3: May | AM3: Jun | AN3: Jul | AO3: Aug | AP3: Sep | AQ3: Oct | AR3: Nov | AS3: Dec | AX3: hour | AY3: Jan | AZ3: Feb | BA3: Mrz | BB3: Apr | BC3: Mai | BD3: Jun | BE3: Jul | BF3: Aug | BG3: Sep | BH3: Okt | BI3: Nov | BJ3: Dec
A4: =Gen_Average!F33/5*$M$36 -> 0 | B4: =Gen_Average!G33/5*$M$36 -> 0 | C4: =Gen_Average!H33/5*$M$36 -> 0 | D4: =Gen_Average!I33/5*$M$36 -> 0 | E4: =Gen_Average!J33/5*$M$36 -> 0 | F4: =Gen_Average!K33/5*$M$36 -> 0 | G4: =Gen_Average!L33/5*$M$36 -> 0 | H4: =Gen_Average!M33/5*$M$36 -> 0 | I4: =Gen_Average!N33/5*$M$36 -> 0 | J4: =Gen_Average!O33/5*$M$36 -> 0 | K4: =Gen_Average!P33/5*$M$36 -> 0 | L4: =Gen_Average!Q33/5*$M$36 -> 0 | P4: 00:00:00 | Q4: 134.3718125 | R4: 95.69006085 | S4: 119.9595506 | T4: 152.8773155 | U4: 151.3608021 | V4: 177.0395576 | W4: 154.0728599 | X4: 164.6462431 | Y4: 201.4956795 | Z4: 202.8729398 | AA4: 213.7660645 | AB4: 192.758262 | AG4: =P4 -> 00:00:00 | AH4: 291.1608299 | AI4: 247.2605063 | AJ4: 171.3237605 | AK4: 259.0806329 | AL4: 221.338821 | AM4: 267.2085376 | AN4: 237.951601 | AO4: 239.3099152 | AP4: 324.8379933 | AQ4: 326.6784233 | AR4: 325.1467926 | AS4: 351.3417087 | AX4: 00:00:00 | AY4: 91.64523871 | AZ4: 62.87493571 | BA4: 76.91989032 | BB4: 106.4069033 | BC4: 100.5005548 | BD4: 123.3969267 | BE4: 105.0210935 | BF4: 115.8403839 | BG4: 143.2915233 | BH4: 144.1516645 | BI4: 157.4850067 | BJ4: 141.8676742
A5: =Gen_Average!F34/5*$M$36 -> 0 | B5: =Gen_Average!G34/5*$M$36 -> 0 | C5: =Gen_Average!H34/5*$M$36 -> 0 | D5: =Gen_Average!I34/5*$M$36 -> 0 | E5: =Gen_Average!J34/5*$M$36 -> 0 | F5: =Gen_Average!K34/5*$M$36 -> 0 | G5: =Gen_Average!L34/5*$M$36 -> 0 | H5: =Gen_Average!M34/5*$M$36 -> 0 | I5: =Gen_Average!N34/5*$M$36 -> 0 | J5: =Gen_Average!O34/5*$M$36 -> 0 | K5: =Gen_Average!P34/5*$M$36 -> 0 | L5: =Gen_Average!Q34/5*$M$36 -> 0 | P5: 01:00:00 | Q5: 132.9145588 | R5: 96.52353625 | S5: 123.2313794 | T5: 153.1739857 | U5: 151.9038588 | V5: 179.5926586 | W5: 153.8081194 | X5: 167.2975113 | Y5: 200.8975705 | Z5: 200.898303 | AA5: 212.6703083 | AB5: 191.1806845 | AG5: =P5 -> 01:00:00 | AH5: 245.1664703 | AI5: 189.7734219 | AJ5: 195.6873706 | AK5: 193.5355038 | AL5: 224.5991289 | AM5: 240.1928085 | AN5: 246.4760641 | AO5: 249.174339 | AP5: 294.0160006 | AQ5: 380.5925129 | AR5: 325.5563986 | AS5: 341.4990128 | AX5: 01:00:00 | AY5: 92.23013548 | AZ5: 65.58479643 | BA5: 80.26246452 | BB5: 108.0861767 | BC5: 103.4652516 | BD5: 126.4390467 | BE5: 105.5832161 | BF5: 119.9386839 | BG5: 144.08455 | BH5: 142.9448419 | BI5: 158.3543333 | BJ5: 141.484329
A6: =Gen_Average!F35/5*$M$36 -> 0 | B6: =Gen_Average!G35/5*$M$36 -> 0 | C6: =Gen_Average!H35/5*$M$36 -> 0 | D6: =Gen_Average!I35/5*$M$36 -> 0 | E6: =Gen_Average!J35/5*$M$36 -> 0 | F6: =Gen_Average!K35/5*$M$36 -> 0 | G6: =Gen_Average!L35/5*$M$36 -> 0 | H6: =Gen_Average!M35/5*$M$36 -> 0 | I6: =Gen_Average!N35/5*$M$36 -> 0 | J6: =Gen_Average!O35/5*$M$36 -> 0 | K6: =Gen_Average!P35/5*$M$36 -> 0 | L6: =Gen_Average!Q35/5*$M$36 -> 0 | P6: 02:00:00 | Q6: 132.82745 | R6: 97.40108018 | S6: 124.4693987 | T6: 155.1359273 | U6: 151.7363211 | V6: 183.5638701 | W6: 153.6445617 | X6: 167.1624423 | Y6: 200.6887461 | Z6: 199.1414357 | AA6: 213.4702818 | AB6: 191.2892752 | AG6: 02:00:00 | AH6: 226.3911043 | AI6: 237.7381488 | AJ6: 166.0715664 | AK6: 210.3705655 | AL6: 230.0733987 | AM6: 259.2341955 | AN6: 237.699394 | AO6: 262.4172017 | AP6: 260.40101 | AQ6: 338.9947333 | AR6: 295.3739284 | AS6: 333.006544 | AX6: 02:00:00 | AY6: 93.84353548 | AZ6: 67.71418571 | BA6: 81.96308667 | BB6: 110.56208 | BC6: 104.2861677 | BD6: 129.0636633 | BE6: 105.8184258 | BF6: 121.3945161 | BG6: 145.0273967 | BH6: 142.5110469 | BI6: 161.2086067 | BJ6: 143.9456161
A7: =Gen_Average!F36/5*$M$36 -> 0 | B7: =Gen_Average!G36/5*$M$36 -> 0 | C7: =Gen_Average!H36/5*$M$36 -> 0 | D7: =Gen_Average!I36/5*$M$36 -> 0 | E7: =Gen_Average!J36/5*$M$36 -> 0 | F7: =Gen_Average!K36/5*$M$36 -> 0 | G7: =Gen_Average!L36/5*$M$36 -> 0 | H7: =Gen_Average!M36/5*$M$36 -> 0 | I7: =Gen_Average!N36/5*$M$36 -> 0 | J7: =Gen_Average!O36/5*$M$36 -> 0 | K7: =Gen_Average!P36/5*$M$36 -> 0 | L7: =Gen_Average!Q36/5*$M$36 -> 0 | P7: 03:00:00 | Q7: 132.1938852 | R7: 98.82440171 | S7: 125.6022771 | T7: 155.8741993 | U7: 151.982665 | V7: 184.0287155 | W7: 154.5762342 | X7: 167.3011366 | Y7: 201.8145579 | Z7: 202.8891705 | AA7: 212.0140799 | AB7: 191.0651207 | AG7: 03:00:00 | AH7: 297.2514285 | AI7: 251.7241482 | AJ7: 254.3861394 | AK7: 250.0361419 | AL7: 240.6350184 | AM7: 265.0292868 | AN7: 324.0029772 | AO7: 273.5058556 | AP7: 231.8546127 | AQ7: 364.1457708 | AR7: 334.9896009 | AS7: 377.7082365 | AX7: 03:00:00 | AY7: 94.35877742 | AZ7: 69.13376071 | BA7: 83.89704194 | BB7: 110.6793933 | BC7: 105.0984581 | BD7: 129.0123533 | BE7: 106.3967645 | BF7: 121.9368968 | BG7: 146.2260067 | BH7: 145.7093032 | BI7: 162.0830433 | BJ7: 144.1551484
A8: =Gen_Average!F37/5*$M$36 -> 0 | B8: =Gen_Average!G37/5*$M$36 -> 0 | C8: =Gen_Average!H37/5*$M$36 -> 0 | D8: =Gen_Average!I37/5*$M$36 -> 0 | E8: =Gen_Average!J37/5*$M$36 -> 0.066342884 | F8: =Gen_Average!K37/5*$M$36 -> 1.45070994 | G8: =Gen_Average!L37/5*$M$36 -> 0.047120784 | H8: =Gen_Average!M37/5*$M$36 -> 0 | I8: =Gen_Average!N37/5*$M$36 -> 0 | J8: =Gen_Average!O37/5*$M$36 -> 0 | K8: =Gen_Average!P37/5*$M$36 -> 0 | L8: =Gen_Average!Q37/5*$M$36 -> 0 | P8: 04:00:00 | Q8: 132.8503641 | R8: 99.6744102 | S8: 126.1610996 | T8: 156.7890717 | U8: 153.9562368 | V8: 186.1844974 | W8: 157.8662331 | X8: 169.9977914 | Y8: 204.0985026 | Z8: 204.2374628 | AA8: 212.8429452 | AB8: 190.9791182 | AG8: 04:00:00 | AH8: 285.7904379 | AI8: 197.2759011 | AJ8: 265.0626401 | AK8: 256.9024271 | AL8: 361.6762894 | AM8: 282.3488857 | AN8: 233.7150879 | AO8: 246.9511898 | AP8: 249.8724287 | AQ8: 397.3997979 | AR8: 422.6203757 | AS8: 422.4733315 | AX8: 04:00:00 | AY8: 95.8074129 | AZ8: 70.02162143 | BA8: 84.01843548 | BB8: 111.16794 | BC8: 106.8825452 | BD8: 130.1878333 | BE8: 108.6405484 | BF8: 123.4741419 | BG8: 147.8545567 | BH8: 146.1807419 | BI8: 162.4831633 | BJ8: 144.4042419
A9: =Gen_Average!F38/5*$M$36 -> 0 | B9: =Gen_Average!G38/5*$M$36 -> 0 | C9: =Gen_Average!H38/5*$M$36 -> 0 | D9: =Gen_Average!I38/5*$M$36 -> 4.0767064 | E9: =Gen_Average!J38/5*$M$36 -> 15.6605118 | F9: =Gen_Average!K38/5*$M$36 -> 19.1228484 | G9: =Gen_Average!L38/5*$M$36 -> 11.9353264 | H9: =Gen_Average!M38/5*$M$36 -> 6.7458478 | I9: =Gen_Average!N38/5*$M$36 -> 0.9852053 | J9: =Gen_Average!O38/5*$M$36 -> 0 | K9: =Gen_Average!P38/5*$M$36 -> 0 | L9: =Gen_Average!Q38/5*$M$36 -> 0 | P9: 05:00:00 | Q9: 133.9182459 | R9: 99.25977091 | S9: 128.6996006 | T9: 158.6379635 | U9: 156.0056395 | V9: 188.2033607 | W9: 161.8001204 | X9: 172.9393428 | Y9: 206.8842886 | Z9: 206.623633 | AA9: 217.0052245 | AB9: 193.0395058 | AG9: 05:00:00 | AH9: 331.2031769 | AI9: 248.9271085 | AJ9: 257.9459445 | AK9: 300.7583799 | AL9: 324.0892346 | AM9: 306.5784838 | AN9: 292.4339772 | AO9: 270.558371 | AP9: 333.7813991 | AQ9: 409.7869028 | AR9: 384.2365384 | AS9: 418.3341615 | AX9: 05:00:00 | AY9: 95.68204839 | AZ9: 69.04348214 | BA9: 84.82350645 | BB9: 112.99044 | BC9: 107.8862613 | BD9: 131.5817467 | BE9: 111.2141774 | BF9: 124.6672871 | BG9: 148.82966 | BH9: 148.0033806 | BI9: 164.2061667 | BJ9: 145.9488032
A10: =Gen_Average!F39/5*$M$36 -> 0 | B10: =Gen_Average!G39/5*$M$36 -> 0.03410079 | C10: =Gen_Average!H39/5*$M$36 -> 22.937958 | D10: =Gen_Average!I39/5*$M$36 -> 59.175784 | E10: =Gen_Average!J39/5*$M$36 -> 94.46342 | F10: =Gen_Average!K39/5*$M$36 -> 97.61614 | G10: =Gen_Average!L39/5*$M$36 -> 82.449412 | H10: =Gen_Average!M39/5*$M$36 -> 69.638104 | I10: =Gen_Average!N39/5*$M$36 -> 53.77846 | J10: =Gen_Average!O39/5*$M$36 -> 31.8825 | K10: =Gen_Average!P39/5*$M$36 -> 0.66713716 | L10: =Gen_Average!Q39/5*$M$36 -> 0 | P10: 06:00:00 | Q10: 136.0463914 | R10: 99.44806638 | S10: 130.9941254 | T10: 167.279912 | U10: 161.6290495 | V10: 194.060992 | W10: 169.0812556 | X10: 174.9752622 | Y10: 212.0964557 | Z10: 211.8612016 | AA10: 223.1369026 | AB10: 194.5760324 | AG10: 06:00:00 | AH10: 247.4166516 | AI10: 230.0865732 | AJ10: 173.6501415 | AK10: 307.9855214 | AL10: 294.272611 | AM10: 286.3691066 | AN10: 277.1602488 | AO10: 243.8057082 | AP10: 263.4890203 | AQ10: 310.3631733 | AR10: 336.0471026 | AS10: 352.1962658 | AX10: 06:00:00 | AY10: 94.78198387 | AZ10: 66.78151429 | BA10: 84.84724839 | BB10: 116.98297 | BC10: 108.3264484 | BD10: 133.4803733 | BE10: 114.5988742 | BF10: 123.9667839 | BG10: 149.8655767 | BH10: 148.3261806 | BI10: 168.3326933 | BJ10: 145.9660161
A11: =Gen_Average!F40/5*$M$36 -> 37.526558 | B11: =Gen_Average!G40/5*$M$36 -> 63.444066 | C11: =Gen_Average!H40/5*$M$36 -> 134.255226 | D11: =Gen_Average!I40/5*$M$36 -> 208.34294 | E11: =Gen_Average!J40/5*$M$36 -> 255.98942 | F11: =Gen_Average!K40/5*$M$36 -> 258.14066 | G11: =Gen_Average!L40/5*$M$36 -> 244.0607 | H11: =Gen_Average!M40/5*$M$36 -> 234.01088 | I11: =Gen_Average!N40/5*$M$36 -> 216.98598 | J11: =Gen_Average!O40/5*$M$36 -> 154.113016 | K11: =Gen_Average!P40/5*$M$36 -> 63.929142 | L11: =Gen_Average!Q40/5*$M$36 -> 44.35372 | P11: 07:00:00 | Q11: 140.1675338 | R11: 101.3673403 | S11: 129.1579496 | T11: 169.6911435 | U11: 161.0824409 | V11: 193.0703757 | W11: 173.3029696 | X11: 177.6099355 | Y11: 215.5782039 | Z11: 208.1239417 | AA11: 223.8522017 | AB11: 194.9307124 | AG11: 07:00:00 | AH11: 278.2986482 | AI11: 293.899418 | AJ11: 212.4084324 | AK11: 278.9187676 | AL11: 280.9920587 | AM11: 264.3471295 | AN11: 292.1363414 | AO11: 242.5670505 | AP11: 297.9487384 | AQ11: 268.8526691 | AR11: 353.0820831 | AS11: 297.2651403 | AX11: 07:00:00 | AY11: 96.19485161 | AZ11: 65.70765714 | BA11: 82.80117097 | BB11: 117.8881667 | BC11: 106.6088613 | BD11: 132.0252133 | BE11: 116.1502097 | BF11: 123.6194452 | BG11: 151.3664433 | BH11: 143.8848839 | BI11: 167.2000233 | BJ11: 144.8150548
A12: =Gen_Average!F41/5*$M$36 -> 175.497392 | B12: =Gen_Average!G41/5*$M$36 -> 241.06464 | C12: =Gen_Average!H41/5*$M$36 -> 317.83766 | D12: =Gen_Average!I41/5*$M$36 -> 369.417 | E12: =Gen_Average!J41/5*$M$36 -> 418.4695 | F12: =Gen_Average!K41/5*$M$36 -> 422.26706 | G12: =Gen_Average!L41/5*$M$36 -> 421.44392 | H12: =Gen_Average!M41/5*$M$36 -> 417.9839 | I12: =Gen_Average!N41/5*$M$36 -> 395.96804 | J12: =Gen_Average!O41/5*$M$36 -> 326.83882 | K12: =Gen_Average!P41/5*$M$36 -> 235.93108 | L12: =Gen_Average!Q41/5*$M$36 -> 202.12372 | P12: 08:00:00 | Q12: 138.4923366 | R12: 101.7619534 | S12: 125.6225628 | T12: 166.6108846 | U12: 154.4304435 | V12: 185.5636657 | W12: 166.4908679 | X12: 171.1420884 | Y12: 215.8072124 | Z12: 207.1567043 | AA12: 222.5854844 | AB12: 194.6082539 | AG12: 08:00:00 | AH12: 245.9022023 | AI12: 259.5241667 | AJ12: 258.9053834 | AK12: 272.8147255 | AL12: 258.7965433 | AM12: 184.5197279 | AN12: 202.6979051 | AO12: 215.3536983 | AP12: 314.3405429 | AQ12: 282.3108308 | AR12: 300.1481483 | AS12: 264.0137164 | AX12: 08:00:00 | AY12: 94.53568387 | AZ12: 63.66280714 | BA12: 78.85037097 | BB12: 114.0357367 | BC12: 100.0194452 | BD12: 125.6907867 | BE12: 112.1324516 | BF12: 117.5185097 | BG12: 151.00154 | BH12: 141.7638484 | BI12: 165.57416 | BJ12: 143.5238581
A13: =Gen_Average!F42/5*$M$36 -> 343.9501 | B13: =Gen_Average!G42/5*$M$36 -> 398.38878 | C13: =Gen_Average!H42/5*$M$36 -> 453.33782 | D13: =Gen_Average!I42/5*$M$36 -> 495.48782 | E13: =Gen_Average!J42/5*$M$36 -> 534.87556 | F13: =Gen_Average!K42/5*$M$36 -> 551.30814 | G13: =Gen_Average!L42/5*$M$36 -> 560.70072 | H13: =Gen_Average!M42/5*$M$36 -> 568.32624 | I13: =Gen_Average!N42/5*$M$36 -> 533.21002 | J13: =Gen_Average!O42/5*$M$36 -> 467.82992 | K13: =Gen_Average!P42/5*$M$36 -> 387.2264 | L13: =Gen_Average!Q42/5*$M$36 -> 386.13314 | P13: 09:00:00 | Q13: 135.7041985 | R13: 99.88160217 | S13: 122.4425375 | T13: 161.6740652 | U13: 146.8590619 | V13: 178.0263168 | W13: 158.5303363 | X13: 160.8180863 | Y13: 204.7980188 | Z13: 199.4549251 | AA13: 215.4352623 | AB13: 190.0326071 | AG13: 09:00:00 | AH13: 181.5553611 | AI13: 257.6267112 | AJ13: 295.2060629 | AK13: 319.6921467 | AL13: 535.2841026 | AM13: 379.7177449 | AN13: 493.6057893 | AO13: 277.1229863 | AP13: 230.5207012 | AQ13: 347.3453547 | AR13: 332.3078108 | AS13: 280.4652688 | AX13: 09:00:00 | AY13: 90.71995484 | AZ13: 59.79651071 | BA13: 73.68943548 | BB13: 107.91516 | BC13: 91.62513226 | BD13: 117.5027167 | BE13: 103.5145806 | BF13: 107.0108968 | BG13: 141.8965433 | BH13: 135.6635806 | BI13: 157.9083933 | BJ13: 138.6039903
A14: =Gen_Average!F43/5*$M$36 -> 449.9288 | B14: =Gen_Average!G43/5*$M$36 -> 514.84092 | C14: =Gen_Average!H43/5*$M$36 -> 531.51354 | D14: =Gen_Average!I43/5*$M$36 -> 577.08478 | E14: =Gen_Average!J43/5*$M$36 -> 621.21296 | F14: =Gen_Average!K43/5*$M$36 -> 629.13436 | G14: =Gen_Average!L43/5*$M$36 -> 653.77412 | H14: =Gen_Average!M43/5*$M$36 -> 669.2354 | I14: =Gen_Average!N43/5*$M$36 -> 624.06622 | J14: =Gen_Average!O43/5*$M$36 -> 558.59536 | K14: =Gen_Average!P43/5*$M$36 -> 486.12208 | L14: =Gen_Average!Q43/5*$M$36 -> 497.42516 | P14: 10:00:00 | Q14: 132.9478493 | R14: 96.69562685 | S14: 117.8813746 | T14: 158.3936578 | U14: 138.118915 | V14: 170.6330778 | W14: 150.7339857 | X14: 151.1609731 | Y14: 188.3899533 | Z14: 187.0643502 | AA14: 206.7729592 | AB14: 185.7356585 | AG14: 10:00:00 | AH14: 389.3123608 | AI14: 295.2453628 | AJ14: 409.7738428 | AK14: 479.6939247 | AL14: 515.1116034 | AM14: 464.5503398 | AN14: 379.448786 | AO14: 400.626006 | AP14: 286.4345625 | AQ14: 391.6601211 | AR14: 367.6552634 | AS14: 397.6569918 | AX14: 10:00:00 | AY14: 85.5727 | AZ14: 55.84342857 | BA14: 68.66617097 | BB14: 103.4515933 | BC14: 83.77863548 | BD14: 110.6995767 | BE14: 95.92407419 | BF14: 98.05387742 | BG14: 127.7115133 | BH14: 125.0938968 | BI14: 149.3832233 | BJ14: 132.4853677
A15: =Gen_Average!F44/5*$M$36 -> 510.05806 | B15: =Gen_Average!G44/5*$M$36 -> 570.3768 | C15: =Gen_Average!H44/5*$M$36 -> 565.4605 | D15: =Gen_Average!I44/5*$M$36 -> 619.91526 | E15: =Gen_Average!J44/5*$M$36 -> 661.65288 | F15: =Gen_Average!K44/5*$M$36 -> 669.28208 | G15: =Gen_Average!L44/5*$M$36 -> 702.4457 | H15: =Gen_Average!M44/5*$M$36 -> 716.25136 | I15: =Gen_Average!N44/5*$M$36 -> 659.28592 | J15: =Gen_Average!O44/5*$M$36 -> 598.62162 | K15: =Gen_Average!P44/5*$M$36 -> 503.85568 | L15: =Gen_Average!Q44/5*$M$36 -> 552.21416 | P15: 11:00:00 | Q15: 131.6535232 | R15: 93.77118786 | S15: 115.9660593 | T15: 155.028042 | U15: 134.8417073 | V15: 167.1694327 | W15: 146.3194929 | X15: 146.4722446 | Y15: 180.2811224 | Z15: 177.6001706 | AA15: 201.4129776 | AB15: 183.0468982 | AG15: 11:00:00 | AH15: 362.0272864 | AI15: 318.3104196 | AJ15: 303.5812789 | AK15: 434.2466308 | AL15: 425.002471 | AM15: 513.4791071 | AN15: 332.0942289 | AO15: 308.8932924 | AP15: 277.7516867 | AQ15: 430.9269436 | AR15: 375.9170939 | AS15: 251.9845682 | AX15: 11:00:00 | AY15: 84.54260968 | AZ15: 52.95358929 | BA15: 66.92261935 | BB15: 99.83208 | BC15: 81.70975806 | BD15: 107.5085433 | BE15: 92.35573226 | BF15: 94.27496129 | BG15: 121.00817 | BH15: 118.2219355 | BI15: 145.0436067 | BJ15: 130.8486742
A16: =Gen_Average!F45/5*$M$36 -> 516.94134 | B16: =Gen_Average!G45/5*$M$36 -> 568.59464 | C16: =Gen_Average!H45/5*$M$36 -> 563.83132 | D16: =Gen_Average!I45/5*$M$36 -> 612.17242 | E16: =Gen_Average!J45/5*$M$36 -> 646.63662 | F16: =Gen_Average!K45/5*$M$36 -> 668.69798 | G16: =Gen_Average!L45/5*$M$36 -> 709.94668 | H16: =Gen_Average!M45/5*$M$36 -> 719.90816 | I16: =Gen_Average!N45/5*$M$36 -> 658.23936 | J16: =Gen_Average!O45/5*$M$36 -> 582.9245 | K16: =Gen_Average!P45/5*$M$36 -> 487.69184 | L16: =Gen_Average!Q45/5*$M$36 -> 540.73708 | P16: 12:00:00 | Q16: 130.0277695 | R16: 91.84918406 | S16: 114.6949152 | T16: 152.4436698 | U16: 132.1432272 | V16: 163.632326 | W16: 142.4938734 | X16: 144.2506653 | Y16: 175.4126575 | Z16: 173.5275245 | AA16: 200.8684121 | AB16: 181.6205616 | AG16: 12:00:00 | AH16: 234.6847811 | AI16: 272.4510072 | AJ16: 230.0615521 | AK16: 321.7321512 | AL16: 465.5819285 | AM16: 402.3109709 | AN16: 356.2491829 | AO16: 277.4341049 | AP16: 292.7602117 | AQ16: 386.6406958 | AR16: 345.8084638 | AS16: 274.4132608 | AX16: 12:00:00 | AY16: 83.81277419 | AZ16: 51.60904286 | BA16: 66.02549032 | BB16: 97.01113667 | BC16: 80.10518387 | BD16: 104.72959 | BE16: 88.93305484 | BF16: 91.85340323 | BG16: 116.6228833 | BH16: 116.0407516 | BI16: 145.1571767 | BJ16: 130.6107871
A17: =Gen_Average!F46/5*$M$36 -> 472.81206 | B17: =Gen_Average!G46/5*$M$36 -> 539.6805 | C17: =Gen_Average!H46/5*$M$36 -> 537.86668 | D17: =Gen_Average!I46/5*$M$36 -> 568.24282 | E17: =Gen_Average!J46/5*$M$36 -> 597.33044 | F17: =Gen_Average!K46/5*$M$36 -> 620.53784 | G17: =Gen_Average!L46/5*$M$36 -> 668.16162 | H17: =Gen_Average!M46/5*$M$36 -> 674.62996 | I17: =Gen_Average!N46/5*$M$36 -> 609.41732 | J17: =Gen_Average!O46/5*$M$36 -> 508.44734 | K17: =Gen_Average!P46/5*$M$36 -> 433.41428 | L17: =Gen_Average!Q46/5*$M$36 -> 486.32272 | P17: 13:00:00 | Q17: 129.5716453 | R17: 91.90528365 | S17: 112.5244184 | T17: 149.6565891 | U17: 130.0373939 | V17: 161.0844705 | W17: 139.0326755 | X17: 142.3017171 | Y17: 172.9097156 | Z17: 168.3522083 | AA17: 200.6742812 | AB17: 181.8140714 | AG17: 13:00:00 | AH17: 273.7778975 | AI17: 280.1243775 | AJ17: 215.1425223 | AK17: 242.8735653 | AL17: 302.635009 | AM17: 311.2176946 | AN17: 312.6824289 | AO17: 338.480788 | AP17: 273.1644133 | AQ17: 349.9524493 | AR17: 361.8924573 | AS17: 323.0422246 | AX17: 13:00:00 | AY17: 83.11812258 | AZ17: 51.45623571 | BA17: 65.06743226 | BB17: 94.87402333 | BC17: 79.18006129 | BD17: 102.6689233 | BE17: 86.02192581 | BF17: 89.5701129 | BG17: 114.6561967 | BH17: 112.9701194 | BI17: 145.0151067 | BJ17: 130.7342484
A18: =Gen_Average!F47/5*$M$36 -> 379.5794 | B18: =Gen_Average!G47/5*$M$36 -> 462.98658 | C18: =Gen_Average!H47/5*$M$36 -> 451.06216 | D18: =Gen_Average!I47/5*$M$36 -> 479.89794 | E18: =Gen_Average!J47/5*$M$36 -> 508.89864 | F18: =Gen_Average!K47/5*$M$36 -> 543.82904 | G18: =Gen_Average!L47/5*$M$36 -> 572.2892 | H18: =Gen_Average!M47/5*$M$36 -> 576.76106 | I18: =Gen_Average!N47/5*$M$36 -> 511.15206 | J18: =Gen_Average!O47/5*$M$36 -> 417.1029 | K18: =Gen_Average!P47/5*$M$36 -> 345.38242 | L18: =Gen_Average!Q47/5*$M$36 -> 385.28432 | P18: 14:00:00 | Q18: 130.22385 | R18: 91.99027178 | S18: 112.3983376 | T18: 149.4820846 | U18: 127.4018726 | V18: 158.5020653 | W18: 137.1500375 | X18: 141.1885107 | Y18: 172.5015761 | Z18: 167.519891 | AA18: 201.0776312 | AB18: 184.1046432 | AG18: 14:00:00 | AH18: 180.5936773 | AI18: 199.0315763 | AJ18: 201.2924286 | AK18: 268.8194707 | AL18: 254.3648656 | AM18: 282.423384 | AN18: 304.4525624 | AO18: 242.2078091 | AP18: 266.1963734 | AQ18: 317.8081187 | AR18: 249.9354317 | AS18: 236.6680174 | AX18: 14:00:00 | AY18: 84.07288387 | AZ18: 52.01124286 | BA18: 65.76549677 | BB18: 95.38772667 | BC18: 78.33059355 | BD18: 101.5409933 | BE18: 84.83313548 | BF18: 88.79554839 | BG18: 115.0590667 | BH18: 113.1591581 | BI18: 146.0788967 | BJ18: 133.4154097
A19: =Gen_Average!F48/5*$M$36 -> 268.96132 | B19: =Gen_Average!G48/5*$M$36 -> 341.96814 | C19: =Gen_Average!H48/5*$M$36 -> 345.14154 | D19: =Gen_Average!I48/5*$M$36 -> 367.7116 | E19: =Gen_Average!J48/5*$M$36 -> 382.75216 | F19: =Gen_Average!K48/5*$M$36 -> 424.56402 | G19: =Gen_Average!L48/5*$M$36 -> 448.10808 | H19: =Gen_Average!M48/5*$M$36 -> 445.70098 | I19: =Gen_Average!N48/5*$M$36 -> 372.38772 | J19: =Gen_Average!O48/5*$M$36 -> 288.66056 | K19: =Gen_Average!P48/5*$M$36 -> 210.81988 | L19: =Gen_Average!Q48/5*$M$36 -> 244.25756 | P19: 15:00:00 | Q19: 132.2827397 | R19: 93.85002351 | S19: 112.9496941 | T19: 149.0596303 | U19: 126.3896127 | V19: 156.1014203 | W19: 135.3457109 | X19: 139.8889166 | Y19: 171.4730008 | Z19: 167.3319064 | AA19: 204.7906246 | AB19: 186.6692863 | AG19: 15:00:00 | AH19: 213.6721954 | AI19: 222.906611 | AJ19: 255.0279641 | AK19: 233.3478384 | AL19: 280.5205148 | AM19: 305.7446564 | AN19: 249.2132845 | AO19: 236.4027513 | AP19: 264.8919272 | AQ19: 299.1320047 | AR19: 266.9993622 | AS19: 305.379865 | AX19: 15:00:00 | AY19: 86.41562258 | AZ19: 53.82981429 | BA19: 67.15101613 | BB19: 96.77338667 | BC19: 79.34177097 | BD19: 101.2747767 | BE19: 84.84112581 | BF19: 89.26773871 | BG19: 115.17695 | BH19: 114.8339226 | BI19: 150.3008333 | BJ19: 136.5470548
A20: =Gen_Average!F49/5*$M$36 -> 116.595078 | B20: =Gen_Average!G49/5*$M$36 -> 184.774186 | C20: =Gen_Average!H49/5*$M$36 -> 202.88342 | D20: =Gen_Average!I49/5*$M$36 -> 221.7483 | E20: =Gen_Average!J49/5*$M$36 -> 235.01004 | F20: =Gen_Average!K49/5*$M$36 -> 269.91524 | G20: =Gen_Average!L49/5*$M$36 -> 287.53012 | H20: =Gen_Average!M49/5*$M$36 -> 275.4219 | I20: =Gen_Average!N49/5*$M$36 -> 205.06168 | J20: =Gen_Average!O49/5*$M$36 -> 128.808456 | K20: =Gen_Average!P49/5*$M$36 -> 71.910614 | L20: =Gen_Average!Q49/5*$M$36 -> 82.289718 | P20: 16:00:00 | Q20: 135.6296879 | R20: 95.90569392 | S20: 115.5252677 | T20: 149.4511953 | U20: 126.7411405 | V20: 156.4978745 | W20: 134.425682 | X20: 138.2643882 | Y20: 173.6664335 | Z20: 171.3383922 | AA20: 215.1982189 | AB20: 195.5053256 | AG20: 16:00:00 | AH20: 326.0721766 | AI20: 375.8365218 | AJ20: 262.9895139 | AK20: 290.6908137 | AL20: 416.192026 | AM20: 262.9992005 | AN20: 276.8107532 | AO20: 269.5013854 | AP20: 240.5365257 | AQ20: 388.1012048 | AR20: 337.1986094 | AS20: 485.3102416 | AX20: 16:00:00 | AY20: 89.29295161 | AZ20: 56.45051786 | BA20: 69.20573871 | BB20: 97.98882667 | BC20: 80.70310645 | BD20: 101.8045167 | BE20: 84.89386129 | BF20: 88.80627419 | BG20: 116.7520233 | BH20: 117.3859968 | BI20: 158.99375 | BJ20: 143.3530742
A21: =Gen_Average!F50/5*$M$36 -> 2.7264818 | B21: =Gen_Average!G50/5*$M$36 -> 43.068246 | C21: =Gen_Average!H50/5*$M$36 -> 71.981018 | D21: =Gen_Average!I50/5*$M$36 -> 84.503606 | E21: =Gen_Average!J50/5*$M$36 -> 100.994324 | F21: =Gen_Average!K50/5*$M$36 -> 118.243764 | G21: =Gen_Average!L50/5*$M$36 -> 121.863216 | H21: =Gen_Average!M50/5*$M$36 -> 107.761234 | I21: =Gen_Average!N50/5*$M$36 -> 60.403788 | J21: =Gen_Average!O50/5*$M$36 -> 14.3481476 | K21: =Gen_Average!P50/5*$M$36 -> 1.31250514 | L21: =Gen_Average!Q50/5*$M$36 -> 1.8085996 | P21: 17:00:00 | Q21: 141.6258063 | R21: 101.0710598 | S21: 121.2595014 | T21: 152.7339035 | U21: 126.6957274 | V21: 160.0765506 | W21: 137.2071714 | X21: 139.1820546 | Y21: 180.149722 | Z21: 180.1300308 | AA21: 232.0366633 | AB21: 205.9422693 | AG21: 17:00:00 | AH21: 258.6837493 | AI21: 389.3150262 | AJ21: 508.639805 | AK21: 391.4981757 | AL21: 400.2786325 | AM21: 391.7485381 | AN21: 309.0382499 | AO21: 220.4564904 | AP21: 219.2005604 | AQ21: 389.9652443 | AR21: 287.9564396 | AS21: 258.6191511 | AX21: 17:00:00 | AY21: 94.06343871 | AZ21: 60.89701071 | BA21: 74.43929032 | BB21: 100.6014733 | BC21: 81.02031613 | BD21: 103.5630467 | BE21: 86.66344516 | BF21: 89.79867097 | BG21: 121.84902 | BH21: 123.0106 | BI21: 172.4990567 | BJ21: 150.9088806
A22: =Gen_Average!F51/5*$M$36 -> 0.001675916 | B22: =Gen_Average!G51/5*$M$36 -> 0.93061774 | C22: =Gen_Average!H51/5*$M$36 -> 2.5058738 | D22: =Gen_Average!I51/5*$M$36 -> 11.7258102 | E22: =Gen_Average!J51/5*$M$36 -> 25.169944 | F22: =Gen_Average!K51/5*$M$36 -> 33.937882 | G22: =Gen_Average!L51/5*$M$36 -> 27.245494 | H22: =Gen_Average!M51/5*$M$36 -> 18.4022756 | I22: =Gen_Average!N51/5*$M$36 -> 3.5028022 | J22: =Gen_Average!O51/5*$M$36 -> 0.28832268 | K22: =Gen_Average!P51/5*$M$36 -> 0 | L22: =Gen_Average!Q51/5*$M$36 -> 0 | P22: 18:00:00 | Q22: 143.2698691 | R22: 106.1085536 | S22: 126.330889 | T22: 158.1411231 | U22: 128.8795217 | V22: 165.0027964 | W22: 141.3914137 | X22: 143.6351537 | Y22: 189.185314 | Z22: 198.3074969 | AA22: 231.8078025 | AB22: 204.2264419 | AG22: 18:00:00 | AH22: 220.9709399 | AI22: 200.7831613 | AJ22: 206.5778685 | AK22: 487.6294273 | AL22: 472.6378611 | AM22: 376.4739016 | AN22: 271.755561 | AO22: 319.6932615 | AP22: 277.870984 | AQ22: 405.5270294 | AR22: 237.0597775 | AS22: 220.0719801 | AX22: 18:00:00 | AY22: 94.51692903 | AZ22: 65.86210357 | BA22: 79.91763548 | BB22: 104.81403 | BC22: 82.94661613 | BD22: 107.14965 | BE22: 90.43039355 | BF22: 93.97080645 | BG22: 128.5653 | BH22: 135.5704903 | BI22: 171.0401867 | BJ22: 148.8830806
A23: =Gen_Average!F52/5*$M$36 -> 0 | B23: =Gen_Average!G52/5*$M$36 -> 0 | C23: =Gen_Average!H52/5*$M$36 -> 0.021290872 | D23: =Gen_Average!I52/5*$M$36 -> 0.23543248 | E23: =Gen_Average!J52/5*$M$36 -> 1.33066896 | F23: =Gen_Average!K52/5*$M$36 -> 6.765278 | G23: =Gen_Average!L52/5*$M$36 -> 6.3594372 | H23: =Gen_Average!M52/5*$M$36 -> 0.45783808 | I23: =Gen_Average!N52/5*$M$36 -> 0.051401886 | J23: =Gen_Average!O52/5*$M$36 -> 0 | K23: =Gen_Average!P52/5*$M$36 -> 0 | L23: =Gen_Average!Q52/5*$M$36 -> 0 | P23: 19:00:00 | Q23: 143.2365657 | R23: 107.171675 | S23: 127.5106258 | T23: 159.9809893 | U23: 135.8450986 | V23: 166.9053669 | W23: 146.0120588 | X23: 153.9164756 | Y23: 203.3752878 | Z23: 206.0881106 | AA23: 230.5033997 | AB23: 201.9725899 | AG23: 19:00:00 | AH23: 244.4245758 | AI23: 231.4322987 | AJ23: 185.8758887 | AK23: 208.1815675 | AL23: 270.0867679 | AM23: 467.8938709 | AN23: 385.0211955 | AO23: 325.9917781 | AP23: 289.1585601 | AQ23: 242.1782385 | AR23: 278.2807574 | AS23: 205.9746653 | AX23: 19:00:00 | AY23: 93.8106871 | AZ23: 64.68243214 | BA23: 80.32343548 | BB23: 108.9556667 | BC23: 86.27292581 | BD23: 109.7461033 | BE23: 94.13617419 | BF23: 102.3516032 | BG23: 139.90026 | BH23: 140.7229452 | BI23: 168.4599233 | BJ23: 146.6888484
A24: =Gen_Average!F53/5*$M$36 -> 0 | B24: =Gen_Average!G53/5*$M$36 -> 0 | C24: =Gen_Average!H53/5*$M$36 -> 0 | D24: =Gen_Average!I53/5*$M$36 -> 0 | E24: =Gen_Average!J53/5*$M$36 -> 0.017790568 | F24: =Gen_Average!K53/5*$M$36 -> 0.150092722 | G24: =Gen_Average!L53/5*$M$36 -> 0.140179608 | H24: =Gen_Average!M53/5*$M$36 -> 0.002038248 | I24: =Gen_Average!N53/5*$M$36 -> 0 | J24: =Gen_Average!O53/5*$M$36 -> 0 | K24: =Gen_Average!P53/5*$M$36 -> 0 | L24: =Gen_Average!Q53/5*$M$36 -> 0 | P24: 20:00:00 | Q24: 140.1684663 | R24: 105.1506742 | S24: 122.9424566 | T24: 158.8831594 | U24: 142.0568764 | V24: 171.5069134 | W24: 151.4001006 | X24: 163.6779162 | Y24: 209.0991368 | Z24: 200.0518434 | AA24: 228.27268 | AB24: 199.7255386 | AG24: 20:00:00 | AH24: 234.2576528 | AI24: 208.5728688 | AJ24: 180.0006702 | AK24: 185.8335171 | AL24: 199.7303134 | AM24: 358.0531506 | AN24: 432.9264324 | AO24: 558.3600433 | AP24: 211.9890648 | AQ24: 232.1450574 | AR24: 270.3419732 | AS24: 218.4546552 | AX24: 20:00:00 | AY24: 91.30830323 | AZ24: 62.25755 | BA24: 75.70117097 | BB24: 107.9860933 | BC24: 89.70589032 | BD24: 114.1971433 | BE24: 99.39227419 | BF24: 111.4254903 | BG24: 144.1637967 | BH24: 135.8801032 | BI24: 165.43852 | BJ24: 144.444429
A25: =Gen_Average!F54/5*$M$36 -> 0 | B25: =Gen_Average!G54/5*$M$36 -> 0 | C25: =Gen_Average!H54/5*$M$36 -> 0 | D25: =Gen_Average!I54/5*$M$36 -> 0 | E25: =Gen_Average!J54/5*$M$36 -> 0 | F25: =Gen_Average!K54/5*$M$36 -> 0 | G25: =Gen_Average!L54/5*$M$36 -> 0 | H25: =Gen_Average!M54/5*$M$36 -> 0 | I25: =Gen_Average!N54/5*$M$36 -> 0 | J25: =Gen_Average!O54/5*$M$36 -> 0 | K25: =Gen_Average!P54/5*$M$36 -> 0 | L25: =Gen_Average!Q54/5*$M$36 -> 0 | P25: 21:00:00 | Q25: 138.4953381 | R25: 101.6344365 | S25: 121.1558316 | T25: 156.7711731 | U25: 142.9472118 | V25: 172.5220367 | W25: 156.1028214 | X25: 168.5332555 | Y25: 209.2849583 | Z25: 199.0192405 | AA25: 231.324591 | AB25: 199.7030645 | AG25: 21:00:00 | AH25: 263.770307 | AI25: 274.5253584 | AJ25: 244.4196591 | AK25: 249.8198351 | AL25: 187.5714739 | AM25: 318.8777339 | AN25: 448.3312106 | AO25: 261.0071553 | AP25: 249.8431145 | AQ25: 242.0371002 | AR25: 236.7943486 | AS25: 275.5365469 | AX25: 21:00:00 | AY25: 90.10890968 | AZ25: 60.477 | BA25: 74.13156129 | BB25: 104.5627367 | BC25: 89.1292129 | BD25: 117.3234333 | BE25: 105.2410387 | BF25: 115.6898129 | BG25: 145.2931333 | BH25: 135.8800774 | BI25: 167.3364533 | BJ25: 144.2964
A26: =Gen_Average!F55/5*$M$36 -> 0 | B26: =Gen_Average!G55/5*$M$36 -> 0 | C26: =Gen_Average!H55/5*$M$36 -> 0 | D26: =Gen_Average!I55/5*$M$36 -> 0 | E26: =Gen_Average!J55/5*$M$36 -> 0 | F26: =Gen_Average!K55/5*$M$36 -> 0 | G26: =Gen_Average!L55/5*$M$36 -> 0 | H26: =Gen_Average!M55/5*$M$36 -> 0 | I26: =Gen_Average!N55/5*$M$36 -> 0 | J26: =Gen_Average!O55/5*$M$36 -> 0 | K26: =Gen_Average!P55/5*$M$36 -> 0 | L26: =Gen_Average!Q55/5*$M$36 -> 0 | P26: 22:00:00 | Q26: 138.0741405 | R26: 99.8074385 | S26: 121.0433294 | T26: 158.7497969 | U26: 146.7510138 | V26: 175.4333064 | W26: 156.6281386 | X26: 168.3837452 | Y26: 211.5467881 | Z26: 200.5089741 | AA26: 232.9777888 | AB26: 201.381292 | AG26: 22:00:00 | AH26: 210.7506085 | AI26: 255.2645111 | AJ26: 193.4984906 | AK26: 206.2563973 | AL26: 216.4223004 | AM26: 244.1343049 | AN26: 231.0274333 | AO26: 224.50287 | AP26: 225.9225899 | AQ26: 243.3641785 | AR26: 256.0254124 | AS26: 247.4943567 | AX26: 22:00:00 | AY26: 90.82874839 | AZ26: 59.74365357 | BA26: 74.65364839 | BB26: 107.0503 | BC26: 92.48572258 | BD26: 119.4805433 | BE26: 105.7276677 | BF26: 116.576 | BG26: 149.7107733 | BH26: 140.3839581 | BI26: 172.1145833 | BJ26: 148.1102194
A27: =Gen_Average!F56/5*$M$36 -> 0 | B27: =Gen_Average!G56/5*$M$36 -> 0 | C27: =Gen_Average!H56/5*$M$36 -> 0 | D27: =Gen_Average!I56/5*$M$36 -> 0 | E27: =Gen_Average!J56/5*$M$36 -> 0 | F27: =Gen_Average!K56/5*$M$36 -> 0 | G27: =Gen_Average!L56/5*$M$36 -> 0 | H27: =Gen_Average!M56/5*$M$36 -> 0 | I27: =Gen_Average!N56/5*$M$36 -> 0 | J27: =Gen_Average!O56/5*$M$36 -> 0 | K27: =Gen_Average!P56/5*$M$36 -> 0 | L27: =Gen_Average!Q56/5*$M$36 -> 0 | N27: 0 | P27: 23:00:00 | Q27: 136.3120553 | R27: 97.81224647 | S27: 121.4076439 | T27: 159.6823166 | U27: 149.4640268 | V27: 179.1009516 | W27: 156.6803973 | X27: 167.4863123 | Y27: 209.3934231 | Z27: 200.3643256 | AA27: 229.2242148 | AB27: 199.1737629 | AG27: 23:00:00 | AH27: 230.8600879 | AI27: 210.3374506 | AJ27: 160.7203104 | AK27: 196.3701285 | AL27: 162.0407135 | AM27: 163.2632981 | AN27: 200.9282235 | AO27: 207.9652406 | AP27: 252.1345718 | AQ27: 233.9457552 | AR27: 298.1463409 | AS27: 266.9763123 | AX27: 23:00:00 | AY27: 92.28215484 | AZ27: 60.86201786 | BA27: 76.55319355 | BB27: 109.5627 | BC27: 97.30331935 | BD27: 124.6330333 | BE27: 107.3177 | BF27: 118.392029 | BG27: 151.09859 | BH27: 144.1787645 | BI27: 173.15212 | BJ27: 151.3143323
A28: =SUM(A4:A27) -> 3274.578266 | B28: =SUM(B4:B27) -> 3930.152217 | C28: 4200.636007 | D28: 4679.738219 | E28: 5100.531222 | F28: 5334.963135 | G28: 5518.501046 | H28: 5501.237178 | I28: 4904.495977 | J28: 4078.461462 | K28: 3228.263058 | L28: 3422.949898 | M28: =AVERAGE(A28:L28) -> 4431.208974 | P28: Avg | Q28: 135.5718225 | R28: 98.43754696 | S28: 121.2902053 | T28: 156.7522513 | U28: 141.6063503 | V28: 172.5700163 | W28: 150.2860012 | X28: 157.0905604 | Y28: 194.9026822 | Z28: 192.0858436 | AA28: 217.0448605 | AB28: 193.0233685 | AC28: =AVERAGE(Q28:AB28) -> 160.8884591 | AG28: Avg | AH28: 261.416442 | AI28: 256.1655273 | AJ28: 242.0103849 | AK28: 285.295344 | AL28: 314.1639037 | AM28: 316.6131691 | AN28: 305.327455 | AO28: 279.6787205 | AP28: 267.8715664 | AQ28: 332.4939296 | AR28: 315.8133546 | AS28: 308.5785926 | AX28: Avg | AY28: 90.98110242 | AZ28: 61.21903795 | BA28: 75.6830821 | BB28: 106.0652808 | BC28: 92.36300995 | BD28: 116.8625222 | BE28: 99.82424772 | BF28: 107.8414114 | BG28: 136.5421447 | BH28: 133.8646295 | BI28: 160.6187094 | BJ28: 141.9731474
A29: 31 | B29: 28 | C29: 31 | D29: 30 | E29: 31 | F29: 30 | G29: 31 | H29: 31 | I29: 30 | J29: 31 | K29: 30 | L29: 31 | M29: average | N29: sum | Q29: =Q28*Q1 -> 4202.726498 | R29: =R28*R1 -> 2756.251315 | S29: 3759.996366 | T29: 4702.567538 | U29: 4389.796858 | V29: 5177.100489 | W29: 4658.866036 | X29: 4869.807372 | Y29: 5847.080467 | Z29: 5954.661152 | AA29: 6511.345816 | AB29: 5983.724424 | AC29: =SUM(Q29:AB29)/AC1 -> 161.1340393 | AH29: =AH28*AH$1 -> 8103.909701 | AI29: =AI28*AI$1 -> 7172.634765 | AJ29: 7502.321931 | AK29: 8558.86032 | AL29: 9739.081013 | AM29: 9498.395073 | AN29: 9465.151104 | AO29: 8670.040335 | AP29: 8036.146991 | AQ29: 10307.31182 | AR29: 9474.400638 | AS29: 9565.936372 | AT29: =SUM(AH29:AS29)/AT$1 -> 290.6690139 | AY29: =AY28*AY$1 -> 2820.414175 | AZ29: 1714.133063 | BA29: 2346.175545 | BB29: 3181.958425 | BC29: 2863.253308 | BD29: 3505.875667 | BE29: 3094.551679 | BF29: 3343.083754 | BG29: 4096.264342 | BH29: 4149.803515 | BI29: 4818.561283 | BJ29: 4401.167571 | BK29: =SUM(AY29:BJ29)/BK$1 -> 110.5075132
A30: =A28*A29 -> 101511.9262 | B30: 110044.2621 | C30: 130219.7162 | D30: 140392.1466 | E30: 158116.4679 | F30: 160048.8941 | G30: 171073.5324 | H30: 170538.3525 | I30: 147134.8793 | J30: 126432.3053 | K30: 96847.89175 | L30: 106111.4468 | M30: =AVERAGE(A30:L30) -> 134872.6518 | N30: =SUM(A30:L30)/1000 -> 1618.471821 | Q30: =Q28/AY28 -> 1.490109692 | R30: 1.607956451 | S30: 1.60260658 | T30: 1.477884658 | U30: 1.533150017 | V30: 1.476692553 | W30: 1.505505973 | X30: 1.456681235 | Y30: 1.427417759 | Z30: 1.434926047 | AA30: =AA28/BI28 -> 1.351304971 | AB30: 1.359576596 | AC30: MIN | AD30: =MIN(Q4:AB27) -> 91.84918406 | AT30: MIN | AU30: =MIN(AH4:AS27) -> 160.7203104
AC31: MAX | AD31: =MAX(Q4:AB27) -> 232.9777888 | AT31: MAX | AU31: =MAX(AH4:AS27) -> 558.3600433
O32: Figure3 | P32: TIER 1 | Q32: Hourly emissions [gCO2eq/kWh] - average mix | AF32: Figure5 | AG32: TIER 2 | AH32: Hourly marginal emissions [gCO2eq/kWh] | AX32: TIER 1 | AY32: Hourly emissions [kgCO2/kWh] - average values from 2020 - using REE CO2 intensity acc. To REE data
P33: hour | Q33: Jan | R33: Feb | S33: Mar | T33: Apr | U33: May | V33: Jun | W33: Jul | X33: Aug | Y33: Sep | Z33: Oct | AA33: Nov | AB33: Dec | AG33: hour | AH33: =Q33 -> Jan | AI33: =R33 -> Feb | AJ33: Mar | AK33: Apr | AL33: May | AM33: Jun | AN33: Jul | AO33: Aug | AP33: Sep | AQ33: Oct | AR33: Nov | AS33: Dec | AX33: hour | AY33: Jan | AZ33: Feb | BA33: Mrz | BB33: Apr | BC33: Mai | BD33: Jun | BE33: Jul | BF33: Aug | BG33: Sep | BH33: Okt | BI33: Nov | BJ33: Dec
P34: 00:00:00 | Q34: =Q4 -> 134.3718125 | R34: =R4 -> 95.69006085 | S34: 119.9595506 | T34: 152.8773155 | U34: 151.3608021 | V34: 177.0395576 | W34: 154.0728599 | X34: 164.6462431 | Y34: 201.4956795 | Z34: 202.8729398 | AA34: 213.7660645 | AB34: 192.758262 | AG34: 00:00:00 | AH34: =AH4 -> 291.1608299 | AI34: =AI4 -> 247.2605063 | AJ34: 171.3237605 | AK34: 259.0806329 | AL34: 221.338821 | AM34: 267.2085376 | AN34: 237.951601 | AO34: 239.3099152 | AP34: 324.8379933 | AQ34: 326.6784233 | AR34: 325.1467926 | AS34: 351.3417087 | AX34: 00:00:00 | AY34: =AY4 -> 91.64523871 | AZ34: =AZ4 -> 62.87493571 | BA34: 76.91989032 | BB34: 106.4069033 | BC34: 100.5005548 | BD34: 123.3969267 | BE34: 105.0210935 | BF34: 115.8403839 | BG34: 143.2915233 | BH34: 144.1516645 | BI34: 157.4850067 | BJ34: 141.8676742
P35: 01:00:00 | Q35: =Q5 -> 132.9145588 | R35: 96.52353625 | S35: 123.2313794 | T35: 153.1739857 | U35: 151.9038588 | V35: 179.5926586 | W35: 153.8081194 | X35: 167.2975113 | Y35: 200.8975705 | Z35: 200.898303 | AA35: 212.6703083 | AB35: 191.1806845 | AG35: 01:00:00 | AH35: =AH5 -> 245.1664703 | AI35: 189.7734219 | AJ35: 195.6873706 | AK35: 193.5355038 | AL35: 224.5991289 | AM35: 240.1928085 | AN35: 246.4760641 | AO35: 249.174339 | AP35: 294.0160006 | AQ35: 380.5925129 | AR35: 325.5563986 | AS35: 341.4990128 | AX35: 01:00:00 | AY35: =AY5 -> 92.23013548 | AZ35: 65.58479643 | BA35: 80.26246452 | BB35: 108.0861767 | BC35: 103.4652516 | BD35: 126.4390467 | BE35: 105.5832161 | BF35: 119.9386839 | BG35: 144.08455 | BH35: 142.9448419 | BI35: 158.3543333 | BJ35: 141.484329
L36: PV power | M36: 1 | N36: KWp | P36: 02:00:00 | Q36: =Q6 -> 132.82745 | R36: 97.40108018 | S36: 124.4693987 | T36: 155.1359273 | U36: 151.7363211 | V36: 183.5638701 | W36: 153.6445617 | X36: 167.1624423 | Y36: 200.6887461 | Z36: 199.1414357 | AA36: 213.4702818 | AB36: 191.2892752 | AG36: 02:00:00 | AH36: =AH6 -> 226.3911043 | AI36: 237.7381488 | AJ36: 166.0715664 | AK36: 210.3705655 | AL36: 230.0733987 | AM36: 259.2341955 | AN36: 237.699394 | AO36: 262.4172017 | AP36: 260.40101 | AQ36: 338.9947333 | AR36: 295.3739284 | AS36: 333.006544 | AX36: 02:00:00 | AY36: 93.84353548 | AZ36: 67.71418571 | BA36: 81.96308667 | BB36: 110.56208 | BC36: 104.2861677 | BD36: 129.0636633 | BE36: 105.8184258 | BF36: 121.3945161 | BG36: 145.0273967 | BH36: 142.5110469 | BI36: 161.2086067 | BJ36: 143.9456161
P37: 03:00:00 | Q37: =Q7 -> 132.1938852 | R37: 98.82440171 | S37: 125.6022771 | T37: 155.8741993 | U37: 151.982665 | V37: 184.0287155 | W37: 154.5762342 | X37: 167.3011366 | Y37: 201.8145579 | Z37: 202.8891705 | AA37: 212.0140799 | AB37: 191.0651207 | AG37: 03:00:00 | AH37: =AH7 -> 297.2514285 | AI37: 251.7241482 | AJ37: 254.3861394 | AK37: 250.0361419 | AL37: 240.6350184 | AM37: 265.0292868 | AN37: 324.0029772 | AO37: 273.5058556 | AP37: 231.8546127 | AQ37: 364.1457708 | AR37: 334.9896009 | AS37: 377.7082365 | AX37: 03:00:00 | AY37: 94.35877742 | AZ37: 69.13376071 | BA37: 83.89704194 | BB37: 110.6793933 | BC37: 105.0984581 | BD37: 129.0123533 | BE37: 106.3967645 | BF37: 121.9368968 | BG37: 146.2260067 | BH37: 145.7093032 | BI37: 162.0830433 | BJ37: 144.1551484
P38: 04:00:00 | Q38: =Q8 -> 132.8503641 | R38: 99.6744102 | S38: 126.1610996 | T38: 156.7890717 | U38: 153.9562368 | V38: 186.1844974 | W38: 157.8662331 | X38: 169.9977914 | Y38: 204.0985026 | Z38: 204.2374628 | AA38: 212.8429452 | AB38: 190.9791182 | AG38: 04:00:00 | AH38: =AH8 -> 285.7904379 | AI38: 197.2759011 | AJ38: 265.0626401 | AK38: 256.9024271 | AL38: 361.6762894 | AM38: 282.3488857 | AN38: 233.7150879 | AO38: 246.9511898 | AP38: 249.8724287 | AQ38: 397.3997979 | AR38: 422.6203757 | AS38: 422.4733315 | AX38: 04:00:00 | AY38: 95.8074129 | AZ38: 70.02162143 | BA38: 84.01843548 | BB38: 111.16794 | BC38: 106.8825452 | BD38: 130.1878333 | BE38: 108.6405484 | BF38: 123.4741419 | BG38: 147.8545567 | BH38: 146.1807419 | BI38: 162.4831633 | BJ38: 144.4042419
P39: 05:00:00 | Q39: =Q9 -> 133.9182459 | R39: 99.25977091 | S39: 128.6996006 | T39: 158.6379635 | U39: 156.0056395 | V39: 188.2033607 | W39: 161.8001204 | X39: 172.9393428 | Y39: 206.8842886 | Z39: 206.623633 | AA39: 217.0052245 | AB39: 193.0395058 | AG39: 05:00:00 | AH39: =AH9 -> 331.2031769 | AI39: 248.9271085 | AJ39: 257.9459445 | AK39: 300.7583799 | AL39: 324.0892346 | AM39: 306.5784838 | AN39: 292.4339772 | AO39: 270.558371 | AP39: 333.7813991 | AQ39: 409.7869028 | AR39: 384.2365384 | AS39: 418.3341615 | AX39: 05:00:00 | AY39: 95.68204839 | AZ39: 69.04348214 | BA39: 84.82350645 | BB39: 112.99044 | BC39: 107.8862613 | BD39: 131.5817467 | BE39: 111.2141774 | BF39: 124.6672871 | BG39: 148.82966 | BH39: 148.0033806 | BI39: 164.2061667 | BJ39: 145.9488032
P40: 06:00:00 | Q40: =Q10 -> 136.0463914 | R40: 99.44806638 | S40: 130.9941254 | T40: 167.279912 | U40: 161.6290495 | V40: 194.060992 | W40: 169.0812556 | X40: 174.9752622 | Y40: 212.0964557 | Z40: 211.8612016 | AA40: 223.1369026 | AB40: 194.5760324 | AG40: 06:00:00 | AH40: =AH10 -> 247.4166516 | AI40: 230.0865732 | AJ40: 173.6501415 | AK40: 307.9855214 | AL40: 294.272611 | AM40: 286.3691066 | AN40: 277.1602488 | AO40: 243.8057082 | AP40: 263.4890203 | AQ40: 310.3631733 | AR40: 336.0471026 | AS40: 352.1962658 | AX40: 06:00:00 | AY40: 94.78198387 | AZ40: 66.78151429 | BA40: 84.84724839 | BB40: 116.98297 | BC40: 108.3264484 | BD40: 133.4803733 | BE40: 114.5988742 | BF40: 123.9667839 | BG40: 149.8655767 | BH40: 148.3261806 | BI40: 168.3326933 | BJ40: 145.9660161
P41: 07:00:00 | Q41: =Q11 -> 140.1675338 | R41: 101.3673403 | S41: 129.1579496 | T41: 169.6911435 | U41: 161.0824409 | V41: 193.0703757 | W41: 173.3029696 | X41: 177.6099355 | Y41: 215.5782039 | Z41: 208.1239417 | AA41: 223.8522017 | AB41: 194.9307124 | AG41: 07:00:00 | AH41: =AH11 -> 278.2986482 | AI41: 293.899418 | AJ41: 212.4084324 | AK41: 278.9187676 | AL41: 280.9920587 | AM41: 264.3471295 | AN41: 292.1363414 | AO41: 242.5670505 | AP41: 297.9487384 | AQ41: 268.8526691 | AR41: 353.0820831 | AS41: 297.2651403 | AX41: 07:00:00 | AY41: 96.19485161 | AZ41: 65.70765714 | BA41: 82.80117097 | BB41: 117.8881667 | BC41: 106.6088613 | BD41: 132.0252133 | BE41: 116.1502097 | BF41: 123.6194452 | BG41: 151.3664433 | BH41: 143.8848839 | BI41: 167.2000233 | BJ41: 144.8150548
P42: 08:00:00 | Q42: =Q12 -> 138.4923366 | R42: 101.7619534 | S42: 125.6225628 | T42: 166.6108846 | U42: 154.4304435 | V42: 185.5636657 | W42: 166.4908679 | X42: 171.1420884 | Y42: 215.8072124 | Z42: 207.1567043 | AA42: 222.5854844 | AB42: 194.6082539 | AG42: 08:00:00 | AH42: =AH12 -> 245.9022023 | AI42: 259.5241667 | AJ42: 258.9053834 | AK42: 272.8147255 | AL42: 258.7965433 | AM42: 184.5197279 | AN42: 202.6979051 | AO42: 215.3536983 | AP42: 314.3405429 | AQ42: 282.3108308 | AR42: 300.1481483 | AS42: 264.0137164 | AX42: 08:00:00 | AY42: 94.53568387 | AZ42: 63.66280714 | BA42: 78.85037097 | BB42: 114.0357367 | BC42: 100.0194452 | BD42: 125.6907867 | BE42: 112.1324516 | BF42: 117.5185097 | BG42: 151.00154 | BH42: 141.7638484 | BI42: 165.57416 | BJ42: 143.5238581
P43: 09:00:00 | Q43: =Q13 -> 135.7041985 | R43: 99.88160217 | S43: 122.4425375 | T43: 161.6740652 | U43: 146.8590619 | V43: 178.0263168 | W43: 158.5303363 | X43: 160.8180863 | Y43: 204.7980188 | Z43: 199.4549251 | AA43: 215.4352623 | AB43: 190.0326071 | AG43: 09:00:00 | AH43: =AH13 -> 181.5553611 | AI43: 257.6267112 | AJ43: 295.2060629 | AK43: 319.6921467 | AL43: 535.2841026 | AM43: 379.7177449 | AN43: 493.6057893 | AO43: 277.1229863 | AP43: 230.5207012 | AQ43: 347.3453547 | AR43: 332.3078108 | AS43: 280.4652688 | AX43: 09:00:00 | AY43: 90.71995484 | AZ43: 59.79651071 | BA43: 73.68943548 | BB43: 107.91516 | BC43: 91.62513226 | BD43: 117.5027167 | BE43: 103.5145806 | BF43: 107.0108968 | BG43: 141.8965433 | BH43: 135.6635806 | BI43: 157.9083933 | BJ43: 138.6039903
P44: 10:00:00 | Q44: =Q14 -> 132.9478493 | R44: 96.69562685 | S44: 117.8813746 | T44: 158.3936578 | U44: 138.118915 | V44: 170.6330778 | W44: 150.7339857 | X44: 151.1609731 | Y44: 188.3899533 | Z44: 187.0643502 | AA44: 206.7729592 | AB44: 185.7356585 | AG44: 10:00:00 | AH44: =AH14 -> 389.3123608 | AI44: 295.2453628 | AJ44: 409.7738428 | AK44: 479.6939247 | AL44: 515.1116034 | AM44: 464.5503398 | AN44: 379.448786 | AO44: 400.626006 | AP44: 286.4345625 | AQ44: 391.6601211 | AR44: 367.6552634 | AS44: 397.6569918 | AX44: 10:00:00 | AY44: 85.5727 | AZ44: 55.84342857 | BA44: 68.66617097 | BB44: 103.4515933 | BC44: 83.77863548 | BD44: 110.6995767 | BE44: 95.92407419 | BF44: 98.05387742 | BG44: 127.7115133 | BH44: 125.0938968 | BI44: 149.3832233 | BJ44: 132.4853677
P45: 11:00:00 | Q45: =Q15 -> 131.6535232 | R45: 93.77118786 | S45: 115.9660593 | T45: 155.028042 | U45: 134.8417073 | V45: 167.1694327 | W45: 146.3194929 | X45: 146.4722446 | Y45: 180.2811224 | Z45: 177.6001706 | AA45: 201.4129776 | AB45: 183.0468982 | AG45: 11:00:00 | AH45: =AH15 -> 362.0272864 | AI45: 318.3104196 | AJ45: 303.5812789 | AK45: 434.2466308 | AL45: 425.002471 | AM45: 513.4791071 | AN45: 332.0942289 | AO45: 308.8932924 | AP45: 277.7516867 | AQ45: 430.9269436 | AR45: 375.9170939 | AS45: 251.9845682 | AX45: 11:00:00 | AY45: 84.54260968 | AZ45: 52.95358929 | BA45: 66.92261935 | BB45: 99.83208 | BC45: 81.70975806 | BD45: 107.5085433 | BE45: 92.35573226 | BF45: 94.27496129 | BG45: 121.00817 | BH45: 118.2219355 | BI45: 145.0436067 | BJ45: 130.8486742
P46: 12:00:00 | Q46: =Q16 -> 130.0277695 | R46: 91.84918406 | S46: 114.6949152 | T46: 152.4436698 | U46: 132.1432272 | V46: 163.632326 | W46: 142.4938734 | X46: 144.2506653 | Y46: 175.4126575 | Z46: 173.5275245 | AA46: 200.8684121 | AB46: 181.6205616 | AG46: 12:00:00 | AH46: =AH16 -> 234.6847811 | AI46: 272.4510072 | AJ46: 230.0615521 | AK46: 321.7321512 | AL46: 465.5819285 | AM46: 402.3109709 | AN46: 356.2491829 | AO46: 277.4341049 | AP46: 292.7602117 | AQ46: 386.6406958 | AR46: 345.8084638 | AS46: 274.4132608 | AX46: 12:00:00 | AY46: 83.81277419 | AZ46: 51.60904286 | BA46: 66.02549032 | BB46: 97.01113667 | BC46: 80.10518387 | BD46: 104.72959 | BE46: 88.93305484 | BF46: 91.85340323 | BG46: 116.6228833 | BH46: 116.0407516 | BI46: 145.1571767 | BJ46: 130.6107871
P47: 13:00:00 | Q47: =Q17 -> 129.5716453 | R47: 91.90528365 | S47: 112.5244184 | T47: 149.6565891 | U47: 130.0373939 | V47: 161.0844705 | W47: 139.0326755 | X47: 142.3017171 | Y47: 172.9097156 | Z47: 168.3522083 | AA47: 200.6742812 | AB47: 181.8140714 | AG47: 13:00:00 | AH47: =AH17 -> 273.7778975 | AI47: 280.1243775 | AJ47: 215.1425223 | AK47: 242.8735653 | AL47: 302.635009 | AM47: 311.2176946 | AN47: 312.6824289 | AO47: 338.480788 | AP47: 273.1644133 | AQ47: 349.9524493 | AR47: 361.8924573 | AS47: 323.0422246 | AX47: 13:00:00 | AY47: 83.11812258 | AZ47: 51.45623571 | BA47: 65.06743226 | BB47: 94.87402333 | BC47: 79.18006129 | BD47: 102.6689233 | BE47: 86.02192581 | BF47: 89.5701129 | BG47: 114.6561967 | BH47: 112.9701194 | BI47: 145.0151067 | BJ47: 130.7342484
P48: 14:00:00 | Q48: =Q18 -> 130.22385 | R48: 91.99027178 | S48: 112.3983376 | T48: 149.4820846 | U48: 127.4018726 | V48: 158.5020653 | W48: 137.1500375 | X48: 141.1885107 | Y48: 172.5015761 | Z48: 167.519891 | AA48: 201.0776312 | AB48: 184.1046432 | AG48: 14:00:00 | AH48: =AH18 -> 180.5936773 | AI48: 199.0315763 | AJ48: 201.2924286 | AK48: 268.8194707 | AL48: 254.3648656 | AM48: 282.423384 | AN48: 304.4525624 | AO48: 242.2078091 | AP48: 266.1963734 | AQ48: 317.8081187 | AR48: 249.9354317 | AS48: 236.6680174 | AX48: 14:00:00 | AY48: 84.07288387 | AZ48: 52.01124286 | BA48: 65.76549677 | BB48: 95.38772667 | BC48: 78.33059355 | BD48: 101.5409933 | BE48: 84.83313548 | BF48: 88.79554839 | BG48: 115.0590667 | BH48: 113.1591581 | BI48: 146.0788967 | BJ48: 133.4154097
P49: 15:00:00 | Q49: =Q19 -> 132.2827397 | R49: 93.85002351 | S49: 112.9496941 | T49: 149.0596303 | U49: 126.3896127 | V49: 156.1014203 | W49: 135.3457109 | X49: 139.8889166 | Y49: 171.4730008 | Z49: 167.3319064 | AA49: 204.7906246 | AB49: 186.6692863 | AG49: 15:00:00 | AH49: =AH19 -> 213.6721954 | AI49: 222.906611 | AJ49: 255.0279641 | AK49: 233.3478384 | AL49: 280.5205148 | AM49: 305.7446564 | AN49: 249.2132845 | AO49: 236.4027513 | AP49: 264.8919272 | AQ49: 299.1320047 | AR49: 266.9993622 | AS49: 305.379865 | AX49: 15:00:00 | AY49: 86.41562258 | AZ49: 53.82981429 | BA49: 67.15101613 | BB49: 96.77338667 | BC49: 79.34177097 | BD49: 101.2747767 | BE49: 84.84112581 | BF49: 89.26773871 | BG49: 115.17695 | BH49: 114.8339226 | BI49: 150.3008333 | BJ49: 136.5470548
P50: 16:00:00 | Q50: =Q20 -> 135.6296879 | R50: 95.90569392 | S50: 115.5252677 | T50: 149.4511953 | U50: 126.7411405 | V50: 156.4978745 | W50: 134.425682 | X50: 138.2643882 | Y50: 173.6664335 | Z50: 171.3383922 | AA50: 215.1982189 | AB50: 195.5053256 | AG50: 16:00:00 | AH50: =AH20 -> 326.0721766 | AI50: 375.8365218 | AJ50: 262.9895139 | AK50: 290.6908137 | AL50: 416.192026 | AM50: 262.9992005 | AN50: 276.8107532 | AO50: 269.5013854 | AP50: 240.5365257 | AQ50: 388.1012048 | AR50: 337.1986094 | AS50: 485.3102416 | AX50: 16:00:00 | AY50: 89.29295161 | AZ50: 56.45051786 | BA50: 69.20573871 | BB50: 97.98882667 | BC50: 80.70310645 | BD50: 101.8045167 | BE50: 84.89386129 | BF50: 88.80627419 | BG50: 116.7520233 | BH50: 117.3859968 | BI50: 158.99375 | BJ50: 143.3530742
P51: 17:00:00 | Q51: =Q21 -> 141.6258063 | R51: 101.0710598 | S51: 121.2595014 | T51: 152.7339035 | U51: 126.6957274 | V51: 160.0765506 | W51: 137.2071714 | X51: 139.1820546 | Y51: 180.149722 | Z51: 180.1300308 | AA51: 232.0366633 | AB51: 205.9422693 | AG51: 17:00:00 | AH51: =AH21 -> 258.6837493 | AI51: 389.3150262 | AJ51: 508.639805 | AK51: 391.4981757 | AL51: 400.2786325 | AM51: 391.7485381 | AN51: 309.0382499 | AO51: 220.4564904 | AP51: 219.2005604 | AQ51: 389.9652443 | AR51: 287.9564396 | AS51: 258.6191511 | AX51: 17:00:00 | AY51: 94.06343871 | AZ51: 60.89701071 | BA51: 74.43929032 | BB51: 100.6014733 | BC51: 81.02031613 | BD51: 103.5630467 | BE51: 86.66344516 | BF51: 89.79867097 | BG51: 121.84902 | BH51: 123.0106 | BI51: 172.4990567 | BJ51: 150.9088806
P52: 18:00:00 | Q52: =Q22 -> 143.2698691 | R52: 106.1085536 | S52: 126.330889 | T52: 158.1411231 | U52: 128.8795217 | V52: 165.0027964 | W52: 141.3914137 | X52: 143.6351537 | Y52: 189.185314 | Z52: 198.3074969 | AA52: 231.8078025 | AB52: 204.2264419 | AG52: 18:00:00 | AH52: =AH22 -> 220.9709399 | AI52: 200.7831613 | AJ52: 206.5778685 | AK52: 487.6294273 | AL52: 472.6378611 | AM52: 376.4739016 | AN52: 271.755561 | AO52: 319.6932615 | AP52: 277.870984 | AQ52: 405.5270294 | AR52: 237.0597775 | AS52: 220.0719801 | AX52: 18:00:00 | AY52: 94.51692903 | AZ52: 65.86210357 | BA52: 79.91763548 | BB52: 104.81403 | BC52: 82.94661613 | BD52: 107.14965 | BE52: 90.43039355 | BF52: 93.97080645 | BG52: 128.5653 | BH52: 135.5704903 | BI52: 171.0401867 | BJ52: 148.8830806
P53: 19:00:00 | Q53: =Q23 -> 143.2365657 | R53: 107.171675 | S53: 127.5106258 | T53: 159.9809893 | U53: 135.8450986 | V53: 166.9053669 | W53: 146.0120588 | X53: 153.9164756 | Y53: 203.3752878 | Z53: 206.0881106 | AA53: 230.5033997 | AB53: 201.9725899 | AG53: 19:00:00 | AH53: =AH23 -> 244.4245758 | AI53: 231.4322987 | AJ53: 185.8758887 | AK53: 208.1815675 | AL53: 270.0867679 | AM53: 467.8938709 | AN53: 385.0211955 | AO53: 325.9917781 | AP53: 289.1585601 | AQ53: 242.1782385 | AR53: 278.2807574 | AS53: 205.9746653 | AX53: 19:00:00 | AY53: 93.8106871 | AZ53: 64.68243214 | BA53: 80.32343548 | BB53: 108.9556667 | BC53: 86.27292581 | BD53: 109.7461033 | BE53: 94.13617419 | BF53: 102.3516032 | BG53: 139.90026 | BH53: 140.7229452 | BI53: 168.4599233 | BJ53: 146.6888484
P54: 20:00:00 | Q54: =Q24 -> 140.1684663 | R54: 105.1506742 | S54: 122.9424566 | T54: 158.8831594 | U54: 142.0568764 | V54: 171.5069134 | W54: 151.4001006 | X54: 163.6779162 | Y54: 209.0991368 | Z54: 200.0518434 | AA54: 228.27268 | AB54: 199.7255386 | AG54: 20:00:00 | AH54: =AH24 -> 234.2576528 | AI54: 208.5728688 | AJ54: 180.0006702 | AK54: 185.8335171 | AL54: 199.7303134 | AM54: 358.0531506 | AN54: 432.9264324 | AO54: 558.3600433 | AP54: 211.9890648 | AQ54: 232.1450574 | AR54: 270.3419732 | AS54: 218.4546552 | AX54: 20:00:00 | AY54: 91.30830323 | AZ54: 62.25755 | BA54: 75.70117097 | BB54: 107.9860933 | BC54: 89.70589032 | BD54: 114.1971433 | BE54: 99.39227419 | BF54: 111.4254903 | BG54: 144.1637967 | BH54: 135.8801032 | BI54: 165.43852 | BJ54: 144.444429
P55: 21:00:00 | Q55: =Q25 -> 138.4953381 | R55: 101.6344365 | S55: 121.1558316 | T55: 156.7711731 | U55: 142.9472118 | V55: 172.5220367 | W55: 156.1028214 | X55: 168.5332555 | Y55: 209.2849583 | Z55: 199.0192405 | AA55: 231.324591 | AB55: 199.7030645 | AG55: 21:00:00 | AH55: =AH25 -> 263.770307 | AI55: 274.5253584 | AJ55: 244.4196591 | AK55: 249.8198351 | AL55: 187.5714739 | AM55: 318.8777339 | AN55: 448.3312106 | AO55: 261.0071553 | AP55: 249.8431145 | AQ55: 242.0371002 | AR55: 236.7943486 | AS55: 275.5365469 | AX55: 21:00:00 | AY55: 90.10890968 | AZ55: 60.477 | BA55: 74.13156129 | BB55: 104.5627367 | BC55: 89.1292129 | BD55: 117.3234333 | BE55: 105.2410387 | BF55: 115.6898129 | BG55: 145.2931333 | BH55: 135.8800774 | BI55: 167.3364533 | BJ55: 144.2964
P56: 22:00:00 | Q56: =Q26 -> 138.0741405 | R56: 99.8074385 | S56: 121.0433294 | T56: 158.7497969 | U56: 146.7510138 | V56: 175.4333064 | W56: 156.6281386 | X56: 168.3837452 | Y56: 211.5467881 | Z56: 200.5089741 | AA56: 232.9777888 | AB56: 201.381292 | AG56: 22:00:00 | AH56: =AH26 -> 210.7506085 | AI56: 255.2645111 | AJ56: 193.4984906 | AK56: 206.2563973 | AL56: 216.4223004 | AM56: 244.1343049 | AN56: 231.0274333 | AO56: 224.50287 | AP56: 225.9225899 | AQ56: 243.3641785 | AR56: 256.0254124 | AS56: 247.4943567 | AX56: 22:00:00 | AY56: 90.82874839 | AZ56: 59.74365357 | BA56: =BA26 -> 74.65364839 | BB56: 107.0503 | BC56: 92.48572258 | BD56: 119.4805433 | BE56: 105.7276677 | BF56: 116.576 | BG56: 149.7107733 | BH56: 140.3839581 | BI56: 172.1145833 | BJ56: 148.1102194
P57: 23:00:00 | Q57: =Q27 -> 136.3120553 | R57: 97.81224647 | S57: 121.4076439 | T57: 159.6823166 | U57: 149.4640268 | V57: 179.1009516 | W57: 156.6803973 | X57: 167.4863123 | Y57: 209.3934231 | Z57: 200.3643256 | AA57: 229.2242148 | AB57: 199.1737629 | AG57: 23:00:00 | AH57: =AH27 -> 230.8600879 | AI57: 210.3374506 | AJ57: 160.7203104 | AK57: 196.3701285 | AL57: 162.0407135 | AM57: 163.2632981 | AN57: 200.9282235 | AO57: 207.9652406 | AP57: 252.1345718 | AQ57: 233.9457552 | AR57: 298.1463409 | AS57: 266.9763123 | AX57: 23:00:00 | AY57: 92.28215484 | AZ57: 60.86201786 | BA57: 76.55319355 | BB57: 109.5627 | BC57: 97.30331935 | BD57: 124.6330333 | BE57: 107.3177 | BF57: 118.392029 | BG57: 151.09859 | BH57: 144.1787645 | BI57: 173.15212 | BJ57: 151.3143323
P58: Avg | Q58: =Q28 -> 135.5718225 | R58: =R28 -> 98.43754696 | S58: =S28 -> 121.2902053 | T58: 156.7522513 | U58: 141.6063503 | V58: 172.5700163 | W58: 150.2860012 | X58: 157.0905604 | Y58: 194.9026822 | Z58: 192.0858436 | AA58: 217.0448605 | AB58: 193.0233685 | AG58: Avg | AH58: =AVERAGE(AH34:AH57) -> 261.416442 | AI58: 256.1655273 | AJ58: 242.0103849 | AK58: 285.295344 | AL58: 314.1639037 | AM58: 316.6131691 | AN58: 305.327455 | AO58: 279.6787205 | AP58: 267.8715664 | AQ58: 332.4939296 | AR58: 315.8133546 | AS58: 308.5785926 | AX58: Avg | AY58: =AVERAGE(AY34:AY57) -> 90.98110242 | AZ58: =AVERAGE(AZ34:AZ57) -> 61.21903795 | BA58: 75.69152297 | BB58: 106.0652808 | BC58: 92.36300995 | BD58: 116.8625222 | BE58: 99.82424772 | BF58: 107.8414114 | BG58: 136.5421447 | BH58: 133.853008 | BI58: 160.6187094 | BJ58: 141.9731474
Q60: =Q58*Q1 -> 4202.726498 | R60: =R58*R1 -> 2756.251315 | S60: 3759.996366 | T60: 4702.567538 | U60: 4389.796858 | V60: 5177.100489 | W60: 4658.866036 | X60: 4869.807372 | Y60: 5847.080467 | Z60: 5954.661152 | AA60: 6511.345816 | AB60: 5983.724424 | AC60: =SUM(Q60:AB60)/AC1 -> 161.1340393 | AH60: =AH58*AH1 -> 8103.909701 | AI60: =AI58*AI1 -> 7172.634765 | AJ60: 7502.321931 | AK60: 8558.86032 | AL60: 9739.081013 | AM60: 9498.395073 | AN60: 9465.151104 | AO60: 8670.040335 | AP60: 8036.146991 | AQ60: 10307.31182 | AR60: 9474.400638 | AS60: 9565.936372 | AT60: =SUM(AH60:AS60)/AT1 -> 290.6690139 | AY60: =AY58*AY1 -> 2820.414175 | AZ60: =AZ58*AZ1 -> 1714.133062 | BA60: 2346.437212 | BB60: 3181.958425 | BC60: 2863.253308 | BD60: 3505.875667 | BE60: 3094.551679 | BF60: 3343.083754 | BG60: 4096.264342 | BH60: 4149.443248 | BI60: 4818.561283 | BJ60: 4401.167571 | BK60: =SUM(AY60:BJ60)/BK1 -> 110.5072431
Q62: Hourly emission reduction [gCO2/hr] | AC62: emission savings (gCO2) | AH62: Hourly emission reduction [gCO2] | AT62: emission savings (gCO2) | AY62: Hourly emission reduction (gCO2) | BK62: emission savings (gCO2)
Q63: =Q3 -> Jan | R63: Feb | S63: Mar | T63: Apr | U63: May | V63: Jun | W63: Jul | X63: Aug | Y63: Sep | Z63: Oct | AA63: Nov | AB63: Dec | AH63: =AH3 -> Jan | AI63: Feb | AJ63: Mar | AK63: Apr | AL63: May | AM63: Jun | AN63: Jul | AO63: Aug | AP63: Sep | AQ63: Oct | AR63: Nov | AS63: Dec | AY63: =AY3 -> Jan | AZ63: Feb | BA63: Mrz | BB63: Apr | BC63: Mai | BD63: Jun | BE63: Jul | BF63: Aug | BG63: Sep | BH63: Okt | BI63: Nov | BJ63: Dec
P64: =P4 -> 00:00:00 | Q64: =A4*Q4/1000 -> 0 | R64: =B4*R4/1000 -> 0 | S64: =C4*S4/1000 -> 0 | T64: =D4*T4/1000 -> 0 | U64: =E4*U4/1000 -> 0 | V64: =F4*V4/1000 -> 0 | W64: =G4*W4/1000 -> 0 | X64: =H4*X4/1000 -> 0 | Y64: =I4*Y4/1000 -> 0 | Z64: =J4*Z4/1000 -> 0 | AA64: =K4*AA4/1000 -> 0 | AB64: =L4*AB4/1000 -> 0 | AG64: =AG4 -> 00:00:00 | AH64: =A4*AH4/1000 -> 0 | AI64: =B4*AI4/1000 -> 0 | AJ64: =C4*AJ4/1000 -> 0 | AK64: =D4*AK4/1000 -> 0 | AL64: =E4*AL4/1000 -> 0 | AM64: =F4*AM4/1000 -> 0 | AN64: =G4*AN4/1000 -> 0 | AO64: =H4*AO4/1000 -> 0 | AP64: =I4*AP4/1000 -> 0 | AQ64: =J4*AQ4/1000 -> 0 | AR64: =K4*AR4/1000 -> 0 | AS64: =L4*AS4/1000 -> 0 | AX64: =AX4 -> 00:00:00 | AY64: =A4*AY4/1000 -> 0 | AZ64: =B4*AZ4/1000 -> 0 | BA64: =C4*BA4/1000 -> 0 | BB64: =D4*BB4/1000 -> 0 | BC64: =E4*BC4/1000 -> 0 | BD64: =F4*BD4/1000 -> 0 | BE64: =G4*BE4/1000 -> 0 | BF64: =H4*BF4/1000 -> 0 | BG64: =I4*BG4/1000 -> 0 | BH64: =J4*BH4/1000 -> 0 | BI64: =K4*BI4/1000 -> 0 | BJ64: =L4*BJ4/1000 -> 0
P65: 01:00:00 | Q65: 0 | R65: 0 | S65: 0 | T65: 0 | U65: 0 | V65: 0 | W65: 0 | X65: 0 | Y65: 0 | Z65: 0 | AA65: 0 | AB65: 0 | AG65: 01:00:00 | AH65: 0 | AI65: 0 | AJ65: 0 | AK65: 0 | AL65: 0 | AM65: 0 | AN65: 0 | AO65: 0 | AP65: 0 | AQ65: 0 | AR65: 0 | AS65: 0 | AX65: 01:00:00 | AY65: 0 | AZ65: 0 | BA65: 0 | BB65: 0 | BC65: 0 | BD65: 0 | BE65: 0 | BF65: 0 | BG65: 0 | BH65: 0 | BI65: 0 | BJ65: 0
P66: 02:00:00 | Q66: 0 | R66: 0 | S66: 0 | T66: 0 | U66: 0 | V66: 0 | W66: 0 | X66: 0 | Y66: 0 | Z66: 0 | AA66: 0 | AB66: 0 | AG66: 02:00:00 | AH66: 0 | AI66: 0 | AJ66: 0 | AK66: 0 | AL66: 0 | AM66: 0 | AN66: 0 | AO66: 0 | AP66: 0 | AQ66: 0 | AR66: 0 | AS66: 0 | AX66: 02:00:00 | AY66: 0 | AZ66: 0 | BA66: 0 | BB66: 0 | BC66: 0 | BD66: 0 | BE66: 0 | BF66: 0 | BG66: 0 | BH66: 0 | BI66: 0 | BJ66: 0
P67: 03:00:00 | Q67: 0 | R67: 0 | S67: 0 | T67: 0 | U67: 0 | V67: 0 | W67: 0 | X67: 0 | Y67: 0 | Z67: 0 | AA67: 0 | AB67: 0 | AG67: 03:00:00 | AH67: 0 | AI67: 0 | AJ67: 0 | AK67: 0 | AL67: 0 | AM67: 0 | AN67: 0 | AO67: 0 | AP67: 0 | AQ67: 0 | AR67: 0 | AS67: 0 | AX67: 03:00:00 | AY67: 0 | AZ67: 0 | BA67: 0 | BB67: 0 | BC67: 0 | BD67: 0 | BE67: 0 | BF67: 0 | BG67: 0 | BH67: 0 | BI67: 0 | BJ67: 0
P68: 04:00:00 | Q68: 0 | R68: 0 | S68: 0 | T68: 0 | U68: 0.01021390076 | V68: 0.2700997011 | W68: 0.007438780673 | X68: 0 | Y68: 0 | Z68: 0 | AA68: 0 | AB68: 0 | AG68: 04:00:00 | AH68: 0 | AI68: 0 | AJ68: 0 | AK68: 0 | AL68: 0.02399464812 | AM68: 0.409606335 | AN68: 0.01101283817 | AO68: 0 | AP68: 0 | AQ68: 0 | AR68: 0 | AS68: 0 | AX68: 04:00:00 | AY68: 0 | AZ68: 0 | BA68: 0 | BB68: 0 | BC68: 0.007090896295 | BD68: 0.1888647839 | BE68: 0.005119227814 | BF68: 0 | BG68: 0 | BH68: 0 | BI68: 0 | BJ68: 0
P69: 05:00:00 | Q69: 0 | R69: 0 | S69: 0 | T69: 0.6467204012 | U69: 2.443128158 | V69: 3.598984335 | W69: 1.931137248 | X69: 1.166622485 | Y69: 0.2038234976 | Z69: 0 | AA69: 0 | AB69: 0 | AG69: 05:00:00 | AH69: 0 | AI69: 0 | AJ69: 0 | AK69: 1.226103612 | AL69: 5.075403282 | AM69: 5.862653868 | AN69: 3.490294969 | AO69: 1.825145592 | AP69: 0.3288432034 | AQ69: 0 | AR69: 0 | AS69: 0 | AX69: 05:00:00 | AY69: 0 | AZ69: 0 | BA69: 0 | BB69: 0.4606288499 | BC69: 1.689554068 | BD69: 2.516217794 | BE69: 1.327377508 | BF69: 0.8409865444 | BG69: 0.1466277698 | BH69: 0 | BI69: 0 | BJ69: 0
P70: 06:00:00 | Q70: 0 | R70: 0.003391257628 | S70: 3.004737748 | T70: 9.898919942 | U70: 15.26803279 | V70: 18.94348497 | W70: 13.9406501 | X70: 12.1849455 | Y70: 11.40622076 | Z70: 6.754664759 | AA70: 0.1488629195 | AB70: 0 | AG70: 06:00:00 | AH70: 0 | AI70: 0.007846133913 | AJ70: 3.983179651 | AK70: 18.22528469 | AL70: 27.79799725 | AM70: 27.9542468 | AN70: 22.85169955 | AO70: 16.97816727 | AP70: 14.17003374 | AQ70: 9.895153873 | AR70: 0.2241895097 | AS70: 0 | AX70: 06:00:00 | AY70: 0 | AZ70: 0.002277302395 | BA70: 1.94622262 | BB70: 6.922558964 | BC70: 10.23288679 | BD70: 13.02983881 | BE70: 9.448609793 | BF70: 8.632811788 | BG70: 8.05953992 | BH70: 4.729009454 | BI70: 0.112300995 | BJ70: 0
P71: 07:00:00 | Q71: 5.260005089 | R71: 6.431156229 | S71: 17.34012971 | T71: 35.35395172 | U71: 41.23540063 | V71: 49.8393142 | W71: 42.29644407 | X71: 41.56265731 | Y71: 46.77744783 | Z71: 32.07460836 | AA71: 14.31067919 | AB71: 8.645902235 | AG71: 07:00:00 | AH71: 10.44359036 | AI71: 18.64617407 | AJ71: 28.5169421 | AK71: 58.11075606 | AL71: 71.93099414 | AM71: 68.23874247 | AN71: 71.29899998 | AO71: 56.76332894 | AP71: 64.65069898 | AQ71: 41.43369569 | AR71: 22.57223463 | AS71: 13.1848148 | AX71: 07:00:00 | AY71: 3.609861678 | AZ71: 4.168760936 | BA71: 11.11648992 | BB71: 24.56116723 | BC71: 27.29074057 | BD71: 34.08107571 | BE71: 28.34770148 | BF71: 28.92829515 | BG71: 32.84439605 | BH71: 22.17453341 | BI71: 10.68895403 | BJ71: 6.423086394
P72: 08:00:00 | Q72: 24.30504388 | R72: 24.53120866 | S72: 39.92758139 | T72: 61.54889314 | U72: 64.62443048 | V72: 78.35742357 | W72: 70.16656403 | X72: 71.53463755 | Y72: 85.45275891 | Z72: 67.70685279 | AA72: 52.51483374 | AB72: 39.33494422 | AG72: 08:00:00 | AH72: 43.15519519 | AI72: 62.56209982 | AJ72: 82.28988121 | AK72: 100.7823974 | AL72: 108.2984601 | AM72: 77.91660303 | AN72: 85.42579971 | AO72: 90.01437868 | AP72: 124.4688087 | AQ72: 92.27013882 | AR72: 70.8142768 | AS72: 53.36343449 | AX72: 08:00:00 | AY72: 16.59076597 | AZ72: 15.34685169 | BA72: 25.0616174 | BB72: 42.12673973 | BC72: 41.85508721 | BD72: 53.07507895 | BE72: 47.25753997 | BF72: 49.120845 | BG72: 59.79178383 | BH72: 46.33392893 | BI72: 39.06409039 | BJ72: 29.0095761
P73: 09:00:00 | Q73: 46.67547266 | R73: 39.79170963 | S73: 55.50783305 | T73: 80.1075301 | U73: 78.55132298 | V73: 98.1473576 | W73: 88.88807371 | X73: 91.39713831 | Y73: 109.2003557 | Z73: 93.31098166 | AA73: 83.42222104 | AB73: 73.37788727 | AG73: 09:00:00 | AH73: 62.44598461 | AI73: 102.6355912 | AJ73: 133.828073 | AK73: 158.4035648 | AL73: 286.3103841 | AM73: 209.3414837 | AN73: 276.7651215 | AO73: 157.4962648 | AP73: 122.9159477 | AQ73: 162.4985495 | AR73: 128.6783573 | AS73: 108.2969349 | AX73: 09:00:00 | AY73: 31.20313754 | AZ73: 23.82225895 | BA73: 33.40620804 | BB73: 53.47064737 | BC73: 49.00804393 | BD73: 64.78020417 | BE73: 58.0406999 | BF73: 60.8171006 | BG73: 75.66065871 | BH73: 63.46748208 | BI73: 61.14629868 | BJ73: 53.519594
P74: 10:00:00 | Q74: 59.81706632 | R74: 49.78286549 | S74: 62.65554669 | T74: 91.40656919 | U74: 85.80126005 | V74: 107.3511322 | W74: 98.54597883 | X74: 101.1622743 | Y74: 117.5678061 | Z74: 104.493278 | AA74: 100.516901 | AB74: 92.38958965 | AG74: 10:00:00 | AH74: 175.1628433 | AI74: 152.0043942 | AJ74: 217.8003458 | AK74: 276.824063 | AL74: 319.9940039 | AM74: 292.2645807 | AN74: 248.0737962 | AO74: 268.1131054 | AP74: 178.7541347 | AQ74: 218.7795263 | AR74: 178.7253414 | AS74: 197.8045928 | AX74: 10:00:00 | AY74: 38.50162222 | AZ74: 28.75048214 | BA74: 36.49699961 | BB74: 59.70033998 | BC74: 52.04437413 | BD74: 69.64490732 | BE74: 62.71267719 | BF74: 65.62112588 | BG74: 79.70044138 | BH74: 69.8768703 | BI74: 72.61848324 | BJ74: 65.90155525
P75: 11:00:00 | Q75: 67.15094062 | R75: 53.48491007 | S75: 65.57422586 | T75: 96.10424899 | U75: 89.21840396 | V75: 111.8835056 | W75: 102.7814986 | X75: 104.9109444 | Y75: 118.8568056 | Z75: 106.3153019 | AA75: 101.4830728 | AB75: 101.0810892 | AG75: 11:00:00 | AH75: 184.6549354 | AI75: 181.5568785 | AJ75: 171.6632218 | AK75: 269.1961131 | AL75: 281.2041089 | AM75: 343.6623649 | AN75: 233.2781631 | AO75: 221.2452408 | AP75: 183.1177763 | AQ75: 257.9621851 | AR75: 189.407963 | AS75: 139.1494467 | AX75: 11:00:00 | AY75: 43.12163948 | AZ75: 30.20349881 | BA75: 37.8420978 | BB75: 61.88742983 | BC75: 54.06349675 | BD75: 71.9535415 | BE75: 64.874887 | BF75: 67.52456924 | BG75: 79.77898269 | BH75: 70.77020654 | BI75: 73.08104507 | BJ75: 72.25649071
P76: 12:00:00 | Q76: 67.21672939 | R76: 52.22495375 | S76: 64.66858542 | T76: 93.32181026 | U76: 85.44864976 | V76: 109.4206058 | W76: 101.1630523 | X76: 103.8472311 | Y76: 115.4635154 | Z76: 101.1534454 | AA76: 97.96188551 | AB76: 98.20897215 | AG76: 12:00:00 | AH76: 121.3182652 | AI76: 154.9141823 | AJ76: 129.7159086 | AK76: 196.9555496 | AL76: 301.0623246 | AM76: 269.0245336 | AN76: 252.9179247 | AO76: 199.727076 | AP76: 192.7062944 | AQ76: 225.3823343 | AR76: 168.647966 | AS76: 148.3854254 | AX76: 12:00:00 | AY76: 43.3262878 | AZ76: 29.34462514 | BA76: 37.22723936 | BB76: 59.3875423 | BC76: 51.79894534 | BD76: 70.03246528 | BE76: 63.13772702 | BF76: 66.12601451 | BG76: 76.76577209 | BH76: 67.64299711 | BI76: 70.79197058 | BJ76: 70.62609563
P77: 13:00:00 | Q77: 61.26303654 | R77: 49.59948943 | S77: 60.52313537 | T77: 85.04128225 | U77: 77.67529371 | V77: 99.95900937 | W77: 92.89629766 | X77: 96.00100171 | Y77: 105.3741755 | Z77: 85.59823247 | AA77: 86.97509911 | AB77: 88.42031374 | AG77: 13:00:00 | AH77: 129.4454917 | AI77: 151.1776641 | AJ77: 115.7179942 | AK77: 138.0111597 | AL77: 180.7731031 | AM77: 193.122356 | AN77: 208.9223982 | AO77: 228.3492805 | AP77: 166.4711247 | AQ77: 177.932392 | AR77: 156.8493588 | AS77: 157.1027733 | AX77: 13:00:00 | AY77: 39.29925076 | AZ77: 27.76992702 | BA77: 34.99760376 | BB77: 53.91148256 | BC77: 47.29666085 | BD77: 63.70995192 | BE77: 57.4765493 | BF77: 60.42668169 | BG77: 69.87347209 | BH77: 57.43935669 | BI77: 62.85161805 | BJ77: 63.57903527
P78: 14:00:00 | Q78: 49.43029086 | R78: 42.59026133 | S78: 50.69863694 | T78: 71.73614447 | U78: 64.83463971 | V78: 86.198026 | W78: 78.48948527 | X78: 81.43203507 | Y78: 88.17453599 | Z78: 69.87303235 | AA78: 69.44867889 | AB78: 70.93263225 | AG78: 14:00:00 | AH78: 68.54963967 | AI78: 92.14894884 | AJ78: 90.79539762 | AK78: 129.0059102 | AL78: 129.4459342 | AM78: 153.5900378 | AN78: 174.2349134 | AO78: 139.6960327 | AP78: 136.0668246 | AQ78: 132.5586879 | AR78: 86.32330423 | AS78: 91.18447616 | AX78: 14:00:00 | AY78: 31.91233482 | AZ78: 24.08050745 | BA78: 29.66432703 | BB78: 45.77637353 | BC78: 39.86233253 | BD78: 55.22094093 | BE78: 48.54908724 | BF78: 51.21381461 | BG78: 58.81267895 | BH78: 47.19901299 | BI78: 50.45308284 | BJ78: 51.4028654
P79: 15:00:00 | Q79: 35.57894029 | R79: 32.09371798 | S79: 38.98363137 | T79: 54.81095514 | U79: 48.37589728 | V79: 66.27504655 | W79: 60.64950666 | X79: 62.34862722 | Y79: 63.85443982 | Z79: 48.30212181 | AA79: 43.17393491 | AB79: 45.59538439 | AG79: 15:00:00 | AH79: 57.46955574 | AI79: 76.22695917 | AJ79: 88.02074426 | AK79: 85.804707 | AL79: 107.369833 | AM79: 129.8081804 | AN79: 111.6744864 | AO79: 105.3649379 | AP79: 98.64250083 | AQ79: 86.34761199 | AR79: 56.28877351 | AS79: 74.59134071 | AX79: 15:00:00 | AY79: 23.24245992 | AZ79: 18.40808147 | BA79: 23.17660512 | BB79: 35.58469685 | BC79: 30.36823422 | BD79: 42.99762631 | BE79: 38.01799399 | BF79: 39.78671863 | BG79: 42.89048181 | BH79: 33.1480244 | BI79: 31.68640365 | BJ79: 33.35265044
P80: 16:00:00 | Q80: 15.81375404 | R80: 17.72089653 | S80: 23.43816141 | T80: 33.14054849 | U80: 29.7854405 | V80: 42.24116135 | W80: 38.65143249 | X80: 38.08104049 | Y80: 35.61233061 | Z80: 22.06983375 | AA80: 15.47503605 | AB80: 16.08807811 | AG80: 16:00:00 | AH80: 38.01841086 | AI80: 69.44488739 | AJ80: 53.356212 | AK80: 64.46019376 | AL80: 97.80930467 | AM80: 70.98749232 | AN80: 79.59142907 | AO80: 74.22658362 | AP80: 49.32482405 | AQ80: 49.99071697 | AR80: 24.24815904 | AS80: 39.93604293 | AX80: 16:00:00 | AY80: 10.41111866 | AZ80: 10.43059849 | BA80: 14.04069695 | BB80: 21.72885573 | BC80: 18.96604028 | BD80: 27.47859055 | BE80: 24.40954212 | BF80: 24.45919277 | BG80: 23.94136605 | BH80: 15.120309 | BI80: 11.43333818 | BJ80: 11.79648405
P81: 17:00:00 | Q81: 0.3861401832 | R81: 4.352953269 | S81: 8.72838235 | T81: 12.9065656 | U81: 12.79554934 | V81: 18.92805387 | W81: 16.72050716 | X81: 14.99842995 | Y81: 10.88172562 | Z81: 2.584532269 | AA81: 0.3045493133 | AB81: 0.3724671059 | AG81: 17:00:00 | AH81: 0.7052965344 | AI81: 16.76711532 | AJ81: 36.61241096 | AK81: 33.08300759 | AL81: 40.4258699 | AM81: 46.32182169 | AN81: 37.660395 | AO81: 23.75666345 | AP81: 13.24054418 | AQ81: 5.595278884 | AR81: 0.3779443071 | AS81: 0.4677384932 | AX81: 17:00:00 | AY81: 0.2564622537 | AZ81: 2.622727438 | BA81: 5.358215897 | BB81: 8.501187266 | BC81: 8.182592058 | BD81: 12.24568445 | BE81: 10.56108614 | BF81: 9.676815595 | BG81: 7.360142372 | BH81: 1.764974245 | BI81: 0.2264058985 | BJ81: 0.2729337412
P82: 18:00:00 | Q82: 0.0002401082659 | R82: 0.09874650238 | S82: 0.3165692649 | T82: 1.854332795 | U82: 3.243890344 | V82: 5.599845436 | W82: 3.852278914 | X82: 2.643213684 | Y82: 0.6626787342 | Z82: 0.05717654897 | AA82: 0 | AB82: 0 | AG82: 18:00:00 | AH82: 0.0003703287337 | AI82: 0.1868523718 | AJ82: 0.5176580683 | AK82: 5.717850113 | AL82: 11.8962685 | AM82: 12.77672685 | AN82: 7.404114507 | AO82: 5.883083505 | AP82: 0.9733270942 | AQ82: 0.1169226399 | AR82: 0 | AS82: 0 | AX82: 18:00:00 | AY82: 0.0001584024336 | AZ82: 0.06129244198 | BA82: 0.2002635089 | BB82: 1.229029422 | BC82: 2.087761683 | BD82: 3.636432178 | BE82: 2.463820745 | BF82: 1.729276679 | BG82: 0.4503388157 | BH82: 0.0390880471 | BI82: 0 | BJ82: 0
P83: 19:00:00 | Q83: 0 | R83: 0 | S83: 0.002714812412 | T83: 0.03766472105 | U83: 0.1807648561 | V83: 1.129161206 | W83: 0.9285545182 | X83: 0.07046882366 | Y83: 0.01045387336 | Z83: 0 | AA83: 0 | AB83: 0 | AG83: 19:00:00 | AH83: 0 | AI83: 0 | AJ83: 0.003957459753 | AK83: 0.04901270273 | AL83: 0.3593960785 | AM83: 3.165432111 | AN83: 2.448518114 | AO83: 0.1492514498 | AP83: 0.01486329534 | AQ83: 0 | AR83: 0 | AS83: 0 | AX83: 19:00:00 | AY83: 0 | AZ83: 0 | BA83: 0.001710155983 | BB83: 0.02565170281 | BC83: 0.1148007045 | BD83: 0.7424628985 | BE83: 0.598653088 | BF83: 0.04686046151 | BG83: 0.007191137216 | BH83: 0 | BI83: 0 | BJ83: 0
P84: 20:00:00 | Q84: 0 | R84: 0 | S84: 0 | T84: 0 | U84: 0.002527272519 | V84: 0.02574193948 | W84: 0.02122320676 | X84: 0.0003336161853 | Y84: 0 | Z84: 0 | AA84: 0 | AB84: 0 | AG84: 20:00:00 | AH84: 0 | AI84: 0 | AJ84: 0 | AK84: 0 | AL84: 0.003553315722 | AM84: 0.05374117199 | AN84: 0.06068745759 | AO84: 0.001138076241 | AP84: 0 | AQ84: 0 | AR84: 0 | AS84: 0 | AX84: 20:00:00 | AY84: 0 | AZ84: 0 | BA84: 0 | BB84: 0 | BC84: 0.001595918742 | BD84: 0.01714016009 | BE84: 0.01393277003 | BF84: 0.0002271127828 | BG84: 0 | BH84: 0 | BI84: 0 | BJ84: 0
P85: 21:00:00 | Q85: 0 | R85: 0 | S85: 0 | T85: 0 | U85: 0 | V85: 0 | W85: 0 | X85: 0 | Y85: 0 | Z85: 0 | AA85: 0 | AB85: 0 | AG85: 21:00:00 | AH85: 0 | AI85: 0 | AJ85: 0 | AK85: 0 | AL85: 0 | AM85: 0 | AN85: 0 | AO85: 0 | AP85: 0 | AQ85: 0 | AR85: 0 | AS85: 0 | AX85: 21:00:00 | AY85: 0 | AZ85: 0 | BA85: 0 | BB85: 0 | BC85: 0 | BD85: 0 | BE85: 0 | BF85: 0 | BG85: 0 | BH85: 0 | BI85: 0 | BJ85: 0
P86: 22:00:00 | Q86: 0 | R86: 0 | S86: 0 | T86: 0 | U86: 0 | V86: 0 | W86: 0 | X86: 0 | Y86: 0 | Z86: 0 | AA86: 0 | AB86: 0 | AG86: 22:00:00 | AH86: 0 | AI86: 0 | AJ86: 0 | AK86: 0 | AL86: 0 | AM86: 0 | AN86: 0 | AO86: 0 | AP86: 0 | AQ86: 0 | AR86: 0 | AS86: 0 | AX86: 22:00:00 | AY86: 0 | AZ86: 0 | BA86: 0 | BB86: 0 | BC86: 0 | BD86: 0 | BE86: 0 | BF86: 0 | BG86: 0 | BH86: 0 | BI86: 0 | BJ86: 0
P87: 23:00:00 | Q87: 0 | R87: 0 | S87: 0 | T87: 0 | U87: 0 | V87: 0 | W87: 0 | X87: 0 | Y87: 0 | Z87: 0 | AA87: 0 | AB87: 0 | AG87: 23:00:00 | AH87: 0 | AI87: 0 | AJ87: 0 | AK87: 0 | AL87: 0 | AM87: 0 | AN87: 0 | AO87: 0 | AP87: 0 | AQ87: 0 | AR87: 0 | AS87: 0 | AX87: 23:00:00 | AY87: 0 | AZ87: 0 | BA87: 0 | BB87: 0 | BC87: 0 | BD87: 0 | BE87: 0 | BF87: 0 | BG87: 0 | BH87: 0 | BI87: 0 | BJ87: 0
P88: daily co2 savings (gCO2) | Q88: =SUM(Q64:Q87) -> 432.89766 | R88: =SUM(R64:R87) -> 372.7062601 | S88: 491.3698714 | T88: 727.9161372 | U88: 699.4948457 | V88: 898.1679538 | W88: 811.9301236 | X88: 823.3416015 | Y88: 909.499074 | Z88: 740.2940621 | AA88: 665.7357545 | AB88: 634.4472603 | AG88: daily co2 savings | AH88: =SUM(AH64:AH87) -> 891.3695789 | AI88: =SUM(AI64:AI87) -> 1078.279594 | AJ88: 1152.821927 | AK88: 1535.855673 | AL88: 1969.780934 | AM88: 1904.500604 | AN88: 1816.109755 | AO88: 1589.589679 | AP88: 1345.846546 | AQ88: 1460.763194 | AR88: 1083.157868 | AS88: 1023.467021 | AX88: daily co2 savings | AY88: =SUM(AY64:AY87) -> 281.4750995 | AZ88: =SUM(AZ64:AZ87) -> 215.0118893 | BA88: 290.5362972 | BB88: 475.2743313 | BC88: 434.8702379 | BD88: 585.3510237 | BE88: 517.2430045 | BF88: 534.9513362 | BG88: 616.0838736 | BH88: 499.7057932 | BI88: 484.1539916 | BJ88: 458.140367
P89: monthly savings (gCO2) | Q89: =Q88*Q1 -> 13419.82746 | R89: 10435.77528 | S89: 15232.46601 | T89: 21837.48412 | U89: 21684.34022 | V89: 26945.03861 | W89: 25169.83383 | X89: 25523.58965 | Y89: 27284.97222 | Z89: 22949.11593 | AA89: 19972.07263 | AB89: 19667.86507 | AC89: =SUM(Q89:AB89)/1000 -> 250.122381 | AD89: kgCO2/y | AG89: monthly savings | AH89: =AH88*AH1 -> 27632.45695 | AI89: 30191.82862 | AJ89: 35737.47973 | AK89: 46075.6702 | AL89: 61063.20894 | AM89: 57135.01811 | AN89: 56299.40239 | AO89: 49277.28004 | AP89: 40375.39639 | AQ89: 45283.65901 | AR89: 32494.73605 | AS89: 31727.47764 | AT89: =SUM(AH89:AS89)/1000 -> 513.2936141 | AU89: kgCO2/y | AX89: monthly savings | AY89: =AY88*AY1 -> 8725.728085 | AZ89: 6020.3329 | BA89: 9006.625213 | BB89: 14258.22994 | BC89: 13480.97738 | BD89: 17560.53071 | BE89: 16034.53314 | BF89: 16583.49142 | BG89: 18482.51621 | BH89: 15490.87959 | BI89: 14524.61975 | BJ89: 14202.35138 | BK89: =SUM(AY89:BJ89)/1000 -> 164.3708157 | BL89: kgCO2/y
S91: annual generation; | T91: =N30/M36 -> 1618.471821 | U91: kWh/kWp | AB91: OR | AC91: =AC89/$M$36 -> 250.122381 | AD91: kgCO2/y*kWp | AS91: OR | AT91: =AT89/M36 -> 513.2936141 | AU91: kgCO2/y*kWp | BJ91: OR | BK91: =BK89/M36 -> 164.3708157 | BL91: kgCO2/y*kWp
AX92: Total annual generation per kWp: | BB92: =N30/M36 -> 1618.471821 | BC92: kWh/kWp
AC93: savings when calculating with average REE value | AX93: average generation GHG emissions | BB93: 172.5 | BC93: gCO2/kWh | BE93: =BB93*BB$92/1000 -> 279.1863892 | BF93: gCO2/Wp
AC94: =N30*M49*1000 -> 0 | AX94: average generation HH impacts | BB94: 68.03443356 | BC94: DALY/kWh | BE94: =BB94*BB$92/1000 -> 110.1118136 | BF94: DALY/Wp
T95: Cat | U95: REE | V95: ei3.71 | W95: ann average | X95: hourly average | Y95: hourly marginal | Z95: Unit | AX95: average generation RES impacts | BB95: 5877.119522 | BC95: MJprim/kWh | BE95: =BB95*BB$92/1000 -> 9511.952336 | BF95: MJprim/Wp
R96: Generation | S96: Electricity generation (per kWh) | T96: GWP | U96: =BK60 -> 110.5072431 | V96: =V115 -> 334.2 | W96: =AC60 -> 161.1340393 | X96: =AC60 -> 161.1340393 | Y96: =AT60 -> 290.6690139 | Z96: gCO2 eq/kWh
U97: =U96/$W96 -> 0.6858094267 | V97: =V96/$W96 -> 2.074049664 | W97: =W96/$W96 -> 1 | X97: =X96/$W96 -> 1 | Y97: =Y96/$W96 -> 1.803895783
T98: AP | V98: =V116 -> 1.07 | W98: =AC161 -> 0.4900477661 | X98: =AC161 -> 0.4900477661 | Y98: =AT161 -> 0.4900477661 | Z98: mmolH+eq/kWh
V99: =V98/$W98 -> 2.183460622 | W99: =W98/$W98 -> 1 | X99: =X98/$W98 -> 1 | Y99: =Y98/$W98 -> 1
T100: FR | V100: 8.5 | W100: =AC226/1000 -> 5.285967875 | X100: =AC226/1000 -> 5.285967875 | Y100: =AT226/1000 -> 4.447128816 | Z100: MJprim/kWh
V101: =V100/$W100 -> 1.608030961 | W101: =W100/$W100 -> 1 | X101: =X100/$W100 -> 1 | Y101: =Y100/$W100 -> 0.8413083321 | AD101: =AC193 -> 789.2355438 | AE101: =AT193 -> 789.2355438
T102: MMR | V102: 0.372 | W102: =AC379 -> 0.7573512357 | X102: =AC379 -> 0.7573512357 | Y102: =AT379 -> 0.2393599734 | Z102: gSbeq/kWh | AD102: =AD101/1000 -> 0.7892355438 | AE102: =AE101/1000 -> 0.7892355438
V103: =V102/$W102 -> 0.4911855721 | W103: =W102/$W102 -> 1 | X103: =X102/$W102 -> 1 | Y103: =Y102/$W102 -> 0.3160488319
R104: Savings | S104: Benefits of PV-SC (per kWp and year) | T104: GWP | U104: =BK91-AF108 -> 34.94914904 | V104: =V96*$N$30/$M$36/1000-AF108 -> 411.471616 | W104: =W96*$N$30/$M$36/1000-AF108 -> 131.3692353 | X104: =AC91-AF108 -> 120.7007144 | Y104: =AT91-AF108 -> 383.8719474 | Z104: kgCO2 eq/kWp
U105: =U104/$W104 -> 0.2660375464 | V105: =V104/$W104 -> 3.13217638 | W105: =W104/$W104 -> 1 | X105: =X104/$W104 -> 0.918789807 | Y105: =Y104/$W104 -> 2.922084052
T106: AP | V106: =V98*$N$30/$M$36/1000-AF109 -> 0.9777648487 | W106: =W98*$N$30/$M$36/1000-AF109 -> 0.03912850042 | X106: =AC193/1000-AF109 -> 0.03523554384 | Y106: =AT193/1000-AF109 -> 0.03523554384 | Z106: molH+eq/kWp | AB106: Impacts of PV | AD106: market for photovoltaic slanted-roof installation, 3kWp, single-Si, panel, mounted, on roof | | AI106: 20 | AJ106: y lifetime
V107: =V106/$W106 -> 24.98855919 | W107: =W106/$W106 -> 1 | X107: =X106/$W106 -> 0.9005084135 | Y107: =Y106/$W106 -> 0.9005084135 | AB107: Cat | AC107: Unit | AD107: per 3kWp | AE107: per kWp | AF107: per kWp*y
T108: FR | V108: =V100*$N$30/$M$36/1000-AF110 -> 12.16042715 | W108: =W100*$N$30/$M$36/1000-AF110 -> 6.958606719 | X108: =AC258/1000-AF110 -> 6.478919018 | Y108: =AT258/1000-AF110 -> 6.290362331 | Z108: GJprim/kWp | AB108: GWP | AC108: kgCO2eq | AD108: 7765.3 | AE108: =AD108/3 -> 2588.433333 | AF108: =AE108/$AI$106 -> 129.4216667 | AG108: =AC108 -> kgCO2eq
V109: =V108/$W108 -> 1.747537638 | W109: =W108/$W108 -> 1 | X109: =X108/$W108 -> 0.9310655537 | Y109: =Y108/$W108 -> 0.9039686514 | AB109: AP | AC109: molH+eq | AD109: 45.24 | AE109: =AD109/3 -> 15.08 | AF109: =AE109/$AI$106 -> 0.754 | AG109: =AC109 -> molH+eq
T110: MMR | V110: =V102*$N$30/$M$36/1000-AF111 -> 0.5896715175 | W110: =W102*$N$30/$M$36/1000-AF111 -> 1.213351634 | X110: =AC350/1000-AF111 -> 1.926668633 | Y110: =AT350/1000-AF111 -> 0.4704579295 | Z110: kgSbeq/kWp | AB110: FR | AC110: GJ | AD110: 95.795 | AE110: =AD110/3 -> 31.93166667 | AF110: =AE110/$AI$106 -> 1.596583333 | AG110: =AC110 -> GJ
V111: =V110/$W110 -> 0.4859856789 | W111: =W110/$W110 -> 1 | X111: =X110/$W110 -> 1.587889759 | Y111: =Y110/$W110 -> 0.3877342037 | AB111: MMR | AC111: kgSbeq | AD111: 0.744 | AE111: =AD111/3 -> 0.248 | AF111: =AE111/$AI$106 -> 0.0124 | AG111: =AC111 -> kgSbeq
N112: iid
N113: =#REF! -> 
T114: Cat | U114: REE | V114: ei3.71 | W114: ann average | X114: hourly average | Y114: annual marginal | Z114: hourly marginal | AA114: Unit
S115: Electricity generation (per kWh) | T115: GWP | U115: =U96 -> 110.5072431 | V115: 334.2 | W115: =W96 -> 161.1340393 | X115: 161.1340393 | Y115: =AT60 -> 290.6690139 | Z115: =Y96 -> 290.6690139 | AA115: gCO2 eq/kWh
T116: AP | U116: =U98 -> 0 | V116: 1.07 | W116: =W98 -> 0.4900477661 | X116: =X98 -> 0.4900477661 | Y116: =Z116 -> 0.4900477661 | Z116: =Y98 -> 0.4900477661 | AA116: mmolH+eq/kWh
T117: FR | U117: =U100 -> 0 | V117: =V100 -> 8.5 | W117: =W100 -> 5.285967875 | X117: =X100 -> 5.285967875 | Y117: =Z117 -> 4.447128816 | Z117: =Y100 -> 4.447128816 | AA117: MJprim/kWh
T118: MMR | U118: =U102 -> 0 | V118: =V102 -> 0.372 | W118: =W102 -> 0.7573512357 | X118: =X102 -> 0.7573512357 | Y118: =Z118 -> 0.2393599734 | Z118: =Y102 -> 0.2393599734 | AA118: gSbeq/kWh
S119: Benefits of PV-SC (per kWp and year) | T119: GWP | U119: =U104 -> 34.94914904 | V119: =V104 -> 411.471616 | W119: =W104 -> 131.3692353 | X119: =X104 -> 120.7007144 | Y119: =Y115*$N$30/$M$36/1000-AF108 -> 341.0179416 | Z119: =Y104 -> 383.8719474 | AA119: kgCO2 eq/kWp
W120: =W105 -> 1 | X120: 0.918789807 | Y120: =Y119/$Y119 -> 1 | Z120: =Z119/Y119 -> 1.12566496
T121: AP | U121: =U106 -> 0 | V121: =V106 -> 0.9777648487 | W121: 0.03912850042 | X121: 0.03523554384 | Y121: =Y116*$N$30/$M$36/1000-AF109 -> 0.03912850042 | Z121: =Y106 -> 0.03523554384 | AA121: molH+eq/kWp
W122: 1 | X122: 0.9005084135 | Y122: =Y121/$Y121 -> 1 | Z122: =Z121/Y121 -> 0.9005084135
T123: FR | U123: =U108 -> 0 | V123: =V108 -> 12.16042715 | W123: 6.958606719 | X123: =X108 -> 6.478919018 | Y123: =Y117*$N$30/$M$36/1000-AF110 -> 5.60096934 | Z123: =Y108 -> 6.290362331 | AA123: GJprim/kWp
W124: =W109 -> 1 | X124: =X123/W123 -> 0.9310655537 | Y124: =Y123/$Y123 -> 1 | Z124: =Z123/Y123 -> 1.123084586
T125: MMR | U125: =U110 -> 0 | V125: =V110 -> 0.5896715175 | W125: =W110 -> 1.213351634 | X125: =X110 -> 1.926668633 | Y125: =Y118*$N$30/$M$36/1000-AF111 -> 0.3749973721 | Z125: =Y110 -> 0.4704579295 | AA125: kgSbeq/kWp
W126: =W111 -> 1 | X126: =X111 -> 1.587889759 | Y126: =Y125/$Y125 -> 1 | Z126: =Z125/Y125 -> 1.25456327
P134: TIER 1 | Q134: Hourly acidification impacts [molH+eq/kWh] - average mix | AG134: TIER 2 | AH134: Hourly acidification impacts [molH+eq/kWh] - marginal mix
P135: hour | Q135: Jan | R135: Feb | S135: Mar | T135: Apr | U135: May | V135: Jun | W135: Jul | X135: Aug | Y135: Sep | Z135: Oct | AA135: Nov | AB135: Dec | AG135: hour | AH135: Jan | AI135: Feb | AJ135: Mar | AK135: Apr | AL135: May | AM135: Jun | AN135: Jul | AO135: Aug | AP135: Sep | AQ135: Oct | AR135: Nov | AS135: Dec
P136: 00:00:00 | Q136: 0.5290570112 | R136: 0.2673910564 | S136: 0.3334139264 | T136: 0.3693586424 | U136: 0.4428036075 | V136: 0.5093314031 | W136: 0.3913772492 | X136: 0.4155478168 | Y136: 0.5750700582 | Z136: 0.6579581132 | AA136: 0.6517886556 | AB136: 0.7243142906 | AG136: 00:00:00 | AH136: 0.5290570112 | AI136: 0.2673910564 | AJ136: 0.3334139264 | AK136: 0.3693586424 | AL136: 0.4428036075 | AM136: 0.5093314031 | AN136: 0.3913772492 | AO136: 0.4155478168 | AP136: 0.5750700582 | AQ136: 0.6579581132 | AR136: 0.6517886556 | AS136: 0.7243142906
P137: 01:00:00 | Q137: 0.5317617977 | R137: 0.2715276218 | S137: 0.3579153385 | T137: 0.3661146975 | U137: 0.4439373363 | V137: 0.5186177808 | W137: 0.3895409343 | X137: 0.4186832604 | Y137: 0.5837172923 | Z137: 0.6722614329 | AA137: 0.6684231097 | AB137: 0.7498996506 | AG137: 01:00:00 | AH137: 0.5317617977 | AI137: 0.2715276218 | AJ137: 0.3579153385 | AK137: 0.3661146975 | AL137: 0.4439373363 | AM137: 0.5186177808 | AN137: 0.3895409343 | AO137: 0.4186832604 | AP137: 0.5837172923 | AQ137: 0.6722614329 | AR137: 0.6684231097 | AS137: 0.7498996506
P138: 02:00:00 | Q138: 0.5357628714 | R138: 0.274995858 | S138: 0.37036982 | T138: 0.3743586414 | U138: 0.4533172075 | V138: 0.5435566733 | W138: 0.3943540556 | X138: 0.4209774056 | Y138: 0.5915093251 | Z138: 0.6745617019 | AA138: 0.678664975 | AB138: 0.764735732 | AG138: 02:00:00 | AH138: 0.5357628714 | AI138: 0.274995858 | AJ138: 0.37036982 | AK138: 0.3743586414 | AL138: 0.4533172075 | AM138: 0.5435566733 | AN138: 0.3943540556 | AO138: 0.4209774056 | AP138: 0.5915093251 | AQ138: 0.6745617019 | AR138: 0.678664975 | AS138: 0.764735732
P139: 03:00:00 | Q139: 0.5245853636 | R139: 0.2805804618 | S139: 0.3718663056 | T139: 0.3850741438 | U139: 0.4566910777 | V139: 0.551038771 | W139: 0.3995438365 | X139: 0.4254986153 | Y139: 0.5989699643 | Z139: 0.6848053876 | AA139: 0.6773216777 | AB139: 0.774743473 | AG139: 03:00:00 | AH139: 0.5245853636 | AI139: 0.2805804618 | AJ139: 0.3718663056 | AK139: 0.3850741438 | AL139: 0.4566910777 | AM139: 0.551038771 | AN139: 0.3995438365 | AO139: 0.4254986153 | AP139: 0.5989699643 | AQ139: 0.6848053876 | AR139: 0.6773216777 | AS139: 0.774743473
P140: 04:00:00 | Q140: 0.5259834511 | R140: 0.2846761369 | S140: 0.375497677 | T140: 0.3895867758 | U140: 0.4564056025 | V140: 0.5578286416 | W140: 0.4051775659 | X140: 0.4375914192 | Y140: 0.6036336251 | Z140: 0.6990443452 | AA140: 0.6872098222 | AB140: 0.7811159606 | AG140: 04:00:00 | AH140: 0.5259834511 | AI140: 0.2846761369 | AJ140: 0.375497677 | AK140: 0.3895867758 | AL140: 0.4564056025 | AM140: 0.5578286416 | AN140: 0.4051775659 | AO140: 0.4375914192 | AP140: 0.6036336251 | AQ140: 0.6990443452 | AR140: 0.6872098222 | AS140: 0.7811159606
P141: 05:00:00 | Q141: 0.5345524325 | R141: 0.2849728988 | S141: 0.3756045829 | T141: 0.3810695037 | U141: 0.4528629686 | V141: 0.5528835899 | W141: 0.4094874439 | X141: 0.4436051324 | Y141: 0.6103815438 | Z141: 0.6943765929 | AA141: 0.6886179009 | AB141: 0.7746680241 | AG141: 05:00:00 | AH141: 0.5345524325 | AI141: 0.2849728988 | AJ141: 0.3756045829 | AK141: 0.3810695037 | AL141: 0.4528629686 | AM141: 0.5528835899 | AN141: 0.4094874439 | AO141: 0.4436051324 | AP141: 0.6103815438 | AQ141: 0.6943765929 | AR141: 0.6886179009 | AS141: 0.7746680241
P142: 06:00:00 | Q142: 0.5248911667 | R142: 0.2803822163 | S142: 0.3615292256 | T142: 0.3980418572 | U142: 0.4646851852 | V142: 0.5547204858 | W142: 0.4166793857 | X142: 0.4391610354 | Y142: 0.5989355492 | Z142: 0.667487608 | AA142: 0.6526783287 | AB142: 0.7349164216 | AG142: 06:00:00 | AH142: 0.5248911667 | AI142: 0.2803822163 | AJ142: 0.3615292256 | AK142: 0.3980418572 | AL142: 0.4646851852 | AM142: 0.5547204858 | AN142: 0.4166793857 | AO142: 0.4391610354 | AP142: 0.5989355492 | AQ142: 0.667487608 | AR142: 0.6526783287 | AS142: 0.7349164216
P143: 07:00:00 | Q143: 0.5021605434 | R143: 0.2778339164 | S143: 0.3496482069 | T143: 0.4039584368 | U143: 0.4661707597 | V143: 0.5523616159 | W143: 0.4359254868 | X143: 0.4515331541 | Y143: 0.5798811525 | Z143: 0.6278222943 | AA143: 0.6204536138 | AB143: 0.6848253799 | AG143: 07:00:00 | AH143: 0.5021605434 | AI143: 0.2778339164 | AJ143: 0.3496482069 | AK143: 0.4039584368 | AL143: 0.4661707597 | AM143: 0.5523616159 | AN143: 0.4359254868 | AO143: 0.4515331541 | AP143: 0.5798811525 | AQ143: 0.6278222943 | AR143: 0.6204536138 | AS143: 0.6848253799
P144: 08:00:00 | Q144: 0.4797694411 | R144: 0.2811883501 | S144: 0.3420028699 | T144: 0.409806 | U144: 0.4660107767 | V144: 0.5413351086 | W144: 0.4245285698 | X144: 0.4491659279 | Y144: 0.5799008372 | Z144: 0.6131690644 | AA144: 0.6022349944 | AB144: 0.664575311 | AG144: 08:00:00 | AH144: 0.4797694411 | AI144: 0.2811883501 | AJ144: 0.3420028699 | AK144: 0.409806 | AL144: 0.4660107767 | AM144: 0.5413351086 | AN144: 0.4245285698 | AO144: 0.4491659279 | AP144: 0.5799008372 | AQ144: 0.6131690644 | AR144: 0.6022349944 | AS144: 0.664575311
P145: 09:00:00 | Q145: 0.4701354171 | R145: 0.2887171597 | S145: 0.3532792382 | T145: 0.4208947914 | U145: 0.4757088689 | V145: 0.5458368098 | W145: 0.4372627705 | X145: 0.4499417733 | Y145: 0.5686365771 | Z145: 0.6013537383 | AA145: 0.59662586 | AB145: 0.6449097467 | AG145: 09:00:00 | AH145: 0.4701354171 | AI145: 0.2887171597 | AJ145: 0.3532792382 | AK145: 0.4208947914 | AL145: 0.4757088689 | AM145: 0.5458368098 | AN145: 0.4372627705 | AO145: 0.4499417733 | AP145: 0.5686365771 | AQ145: 0.6013537383 | AR145: 0.59662586 | AS145: 0.6449097467
P146: 10:00:00 | Q146: 0.4816735189 | R146: 0.2978300922 | S146: 0.3663450963 | T146: 0.4382959959 | U146: 0.4849755033 | V146: 0.5490509182 | W146: 0.4407320474 | X146: 0.4514358357 | Y146: 0.5630693911 | Z146: 0.6009762821 | AA146: 0.5961374366 | AB146: 0.6446886303 | AG146: 10:00:00 | AH146: 0.4816735189 | AI146: 0.2978300922 | AJ146: 0.3663450963 | AK146: 0.4382959959 | AL146: 0.4849755033 | AM146: 0.5490509182 | AN146: 0.4407320474 | AO146: 0.4514358357 | AP146: 0.5630693911 | AQ146: 0.6009762821 | AR146: 0.5961374366 | AS146: 0.6446886303
P147: 11:00:00 | Q147: 0.4822064878 | R147: 0.3023577093 | S147: 0.3792970669 | T147: 0.4491701741 | U147: 0.4896220434 | V147: 0.5545384573 | W147: 0.4333735908 | X147: 0.4485821744 | Y147: 0.5508248703 | Z147: 0.5956735863 | AA147: 0.5961735258 | AB147: 0.6443492369 | AG147: 11:00:00 | AH147: 0.4822064878 | AI147: 0.3023577093 | AJ147: 0.3792970669 | AK147: 0.4491701741 | AL147: 0.4896220434 | AM147: 0.5545384573 | AN147: 0.4333735908 | AO147: 0.4485821744 | AP147: 0.5508248703 | AQ147: 0.5956735863 | AR147: 0.5961735258 | AS147: 0.6443492369
P148: 12:00:00 | Q148: 0.4845538282 | R148: 0.3038462509 | S148: 0.3893564171 | T148: 0.4527890848 | U148: 0.4900565262 | V148: 0.5522202871 | W148: 0.4309411066 | X148: 0.4459730076 | Y148: 0.5471395377 | Z148: 0.5921305795 | AA148: 0.5936190819 | AB148: 0.6404632794 | AG148: 12:00:00 | AH148: 0.4845538282 | AI148: 0.3038462509 | AJ148: 0.3893564171 | AK148: 0.4527890848 | AL148: 0.4900565262 | AM148: 0.5522202871 | AN148: 0.4309411066 | AO148: 0.4459730076 | AP148: 0.5471395377 | AQ148: 0.5921305795 | AR148: 0.5936190819 | AS148: 0.6404632794
P149: 13:00:00 | Q149: 0.4860996697 | R149: 0.3040880535 | S149: 0.3819364795 | T149: 0.4514518485 | U149: 0.4899622258 | V149: 0.5489013023 | W149: 0.4266014574 | X149: 0.4437074783 | Y149: 0.5410025112 | Z149: 0.5820349699 | AA149: 0.5937861288 | AB149: 0.6430566406 | AG149: 13:00:00 | AH149: 0.4860996697 | AI149: 0.3040880535 | AJ149: 0.3819364795 | AK149: 0.4514518485 | AL149: 0.4899622258 | AM149: 0.5489013023 | AN149: 0.4266014574 | AO149: 0.4437074783 | AP149: 0.5410025112 | AQ149: 0.5820349699 | AR149: 0.5937861288 | AS149: 0.6430566406
P150: 14:00:00 | Q150: 0.4910023245 | R150: 0.3008834018 | S150: 0.3758446552 | T150: 0.462105276 | U150: 0.4834931713 | V150: 0.5391851613 | W150: 0.4257364743 | X150: 0.4405380786 | Y150: 0.5416661745 | Z150: 0.5813538558 | AA150: 0.5955352555 | AB150: 0.6519903355 | AG150: 14:00:00 | AH150: 0.4910023245 | AI150: 0.3008834018 | AJ150: 0.3758446552 | AK150: 0.462105276 | AL150: 0.4834931713 | AM150: 0.5391851613 | AN150: 0.4257364743 | AO150: 0.4405380786 | AP150: 0.5416661745 | AQ150: 0.5813538558 | AR150: 0.5955352555 | AS150: 0.6519903355
P151: 15:00:00 | Q151: 0.4972764804 | R151: 0.3054300566 | S151: 0.3744431682 | T151: 0.4678255072 | U151: 0.4750441186 | V151: 0.5345352202 | W151: 0.4196823967 | X151: 0.4394552986 | Y151: 0.5442613475 | Z151: 0.5885035274 | AA151: 0.6018616522 | AB151: 0.6599503208 | AG151: 15:00:00 | AH151: 0.4972764804 | AI151: 0.3054300566 | AJ151: 0.3744431682 | AK151: 0.4678255072 | AL151: 0.4750441186 | AM151: 0.5345352202 | AN151: 0.4196823967 | AO151: 0.4394552986 | AP151: 0.5442613475 | AQ151: 0.5885035274 | AR151: 0.6018616522 | AS151: 0.6599503208
P152: 16:00:00 | Q152: 0.5007438582 | R152: 0.3009438785 | S152: 0.3757520314 | T152: 0.4670681842 | U152: 0.4654857629 | V152: 0.5324760524 | W152: 0.4155397599 | X152: 0.4357472549 | Y152: 0.5505015856 | Z152: 0.6026017057 | AA152: 0.6051027234 | AB152: 0.6675145066 | AG152: 16:00:00 | AH152: 0.5007438582 | AI152: 0.3009438785 | AJ152: 0.3757520314 | AK152: 0.4670681842 | AL152: 0.4654857629 | AM152: 0.5324760524 | AN152: 0.4155397599 | AO152: 0.4357472549 | AP152: 0.5505015856 | AQ152: 0.6026017057 | AR152: 0.6051027234 | AS152: 0.6675145066
P153: 17:00:00 | Q153: 0.4991443607 | R153: 0.2950390544 | S153: 0.3663983451 | T153: 0.4597652911 | U153: 0.455194815 | V153: 0.5388092655 | W153: 0.4185248555 | X153: 0.4320392494 | Y153: 0.5531665907 | Z153: 0.60554431 | AA153: 0.6062809131 | AB153: 0.6652250511 | AG153: 17:00:00 | AH153: 0.4991443607 | AI153: 0.2950390544 | AJ153: 0.3663983451 | AK153: 0.4597652911 | AL153: 0.455194815 | AM153: 0.5388092655 | AN153: 0.4185248555 | AO153: 0.4320392494 | AP153: 0.5531665907 | AQ153: 0.60554431 | AR153: 0.6062809131 | AS153: 0.6652250511
P154: 18:00:00 | Q154: 0.4853362833 | R154: 0.286164966 | S154: 0.3460521006 | T154: 0.4465086056 | U154: 0.4439905281 | V154: 0.5394896915 | W154: 0.419285479 | X154: 0.4246354756 | Y154: 0.5575066063 | Z154: 0.6141509893 | AA154: 0.5855904943 | AB154: 0.6347918419 | AG154: 18:00:00 | AH154: 0.4853362833 | AI154: 0.286164966 | AJ154: 0.3460521006 | AK154: 0.4465086056 | AL154: 0.4439905281 | AM154: 0.5394896915 | AN154: 0.419285479 | AO154: 0.4246354756 | AP154: 0.5575066063 | AQ154: 0.6141509893 | AR154: 0.5855904943 | AS154: 0.6347918419
P155: 19:00:00 | Q155: 0.4750820491 | R155: 0.2769797338 | S155: 0.3190821534 | T155: 0.4092064013 | U155: 0.4428558719 | V155: 0.5289207577 | W155: 0.4159459623 | X155: 0.4235360467 | Y155: 0.5517989492 | Z155: 0.5979879504 | AA155: 0.5800157655 | AB155: 0.6264381397 | AG155: 19:00:00 | AH155: 0.4750820491 | AI155: 0.2769797338 | AJ155: 0.3190821534 | AK155: 0.4092064013 | AL155: 0.4428558719 | AM155: 0.5289207577 | AN155: 0.4159459623 | AO155: 0.4235360467 | AP155: 0.5517989492 | AQ155: 0.5979879504 | AR155: 0.5800157655 | AS155: 0.6264381397
P156: 20:00:00 | Q156: 0.4707229781 | R156: 0.2707143294 | S156: 0.3021252126 | T156: 0.3791491698 | U156: 0.4297074036 | V156: 0.5111583003 | W156: 0.4017193289 | X156: 0.4109202937 | Y156: 0.5331327403 | Z156: 0.5700258224 | AA156: 0.5759179539 | AB156: 0.6219357365 | AG156: 20:00:00 | AH156: 0.4707229781 | AI156: 0.2707143294 | AJ156: 0.3021252126 | AK156: 0.3791491698 | AL156: 0.4297074036 | AM156: 0.5111583003 | AN156: 0.4017193289 | AO156: 0.4109202937 | AP156: 0.5331327403 | AQ156: 0.5700258224 | AR156: 0.5759179539 | AS156: 0.6219357365
P157: 21:00:00 | Q157: 0.4736687238 | R157: 0.2655853124 | S157: 0.2968158339 | T157: 0.3704996138 | U157: 0.4166528995 | V157: 0.4913519269 | W157: 0.3863615954 | X157: 0.4002202483 | Y157: 0.5294296047 | Z157: 0.5776176887 | AA157: 0.5863823152 | AB157: 0.6294727416 | AG157: 21:00:00 | AH157: 0.4736687238 | AI157: 0.2655853124 | AJ157: 0.2968158339 | AK157: 0.3704996138 | AL157: 0.4166528995 | AM157: 0.4913519269 | AN157: 0.3863615954 | AO157: 0.4002202483 | AP157: 0.5294296047 | AQ157: 0.5776176887 | AR157: 0.5863823152 | AS157: 0.6294727416
P158: 22:00:00 | Q158: 0.4891614806 | R158: 0.271044748 | S158: 0.3049592672 | T158: 0.3769008979 | U158: 0.4212856891 | V158: 0.4905405638 | W158: 0.3867239025 | X158: 0.4049134435 | Y158: 0.5495572986 | Z158: 0.5988324092 | AA158: 0.6085272598 | AB158: 0.6538883198 | AG158: 22:00:00 | AH158: 0.4891614806 | AI158: 0.271044748 | AJ158: 0.3049592672 | AK158: 0.3769008979 | AL158: 0.4212856891 | AM158: 0.4905405638 | AN158: 0.3867239025 | AO158: 0.4049134435 | AP158: 0.5495572986 | AQ158: 0.5988324092 | AR158: 0.6085272598 | AS158: 0.6538883198
P159: 23:00:00 | Q159: 0.4987181241 | R159: 0.2676038654 | S159: 0.3156108541 | T159: 0.3777979448 | U159: 0.4293830272 | V159: 0.5036409988 | W159: 0.3899064465 | X159: 0.4117041134 | Y159: 0.5703578101 | Z159: 0.6228899079 | AA159: 0.6342439249 | AB159: 0.6721032119 | AG159: 23:00:00 | AH159: 0.4987181241 | AI159: 0.2676038654 | AJ159: 0.3156108541 | AK159: 0.3777979448 | AL159: 0.4293830272 | AM159: 0.5036409988 | AN159: 0.3899064465 | AO159: 0.4117041134 | AP159: 0.5703578101 | AQ159: 0.6228899079 | AR159: 0.6342439249 | AS159: 0.6721032119
P160: Avg | Q160: 0.4971063116 | R160: 0.2857410629 | S160: 0.3535228048 | T160: 0.4155436179 | U160: 0.4593007369 | V160: 0.5348883423 | W160: 0.4141311759 | X160: 0.4319402203 | Y160: 0.5631454308 | Z160: 0.618086252 | AA160: 0.6160816799 | AB160: 0.676780651 | AG160: Avg | AH160: 0.4971063116 | AI160: 0.2857410629 | AJ160: 0.3535228048 | AK160: 0.4155436179 | AL160: 0.4593007369 | AM160: 0.5348883423 | AN160: 0.4141311759 | AO160: 0.4319402203 | AP160: 0.5631454308 | AQ160: 0.618086252 | AR160: 0.6160816799 | AS160: 0.676780651
Q161: =Q160*Q$1 -> 15.41029566 | R161: =R160*R$1 -> 8.000749761 | S161: 10.95920695 | T161: 12.46630854 | U161: 14.23832284 | V161: 16.04665027 | W161: 12.83806645 | X161: 13.39014683 | Y161: 16.89436292 | Z161: 19.16067381 | AA161: 18.4824504 | AB161: 20.98020018 | AC161: =SUM(Q161:AB161)/AC$1 -> 0.4900477661 | AH161: =AH160*AH$1 -> 15.41029566 | AI161: 8.000749761 | AJ161: 10.95920695 | AK161: 12.46630854 | AL161: 14.23832284 | AM161: 16.04665027 | AN161: 12.83806645 | AO161: 13.39014683 | AP161: 16.89436292 | AQ161: 19.16067381 | AR161: 18.4824504 | AS161: 20.98020018 | AT161: =SUM(AH161:AS161)/AT$1 -> 0.4900477661
Q164: Hourly acidification impacts reduction [molH+eq] (average mix) | AC164: emission savings (gCO2) | AH164: Hourly acidification impacts reduction [molH+eq] (marginal mix) | AT164: emission savings (gCO2)
P165: hour | Q165: Jan | R165: Feb | S165: Mar | T165: Apr | U165: May | V165: Jun | W165: Jul | X165: Aug | Y165: Sep | Z165: Oct | AA165: Nov | AB165: Dec | AG165: hour | AH165: Jan | AI165: Feb | AJ165: Mar | AK165: Apr | AL165: May | AM165: Jun | AN165: Jul | AO165: Aug | AP165: Sep | AQ165: Oct | AR165: Nov | AS165: Dec
P166: =P136 -> 00:00:00 | Q166: =A4*Q136/1000 -> 0 | R166: =B4*R136/1000 -> 0 | S166: =C4*S136/1000 -> 0 | T166: =D4*T136/1000 -> 0 | U166: =E4*U136/1000 -> 0 | V166: =F4*V136/1000 -> 0 | W166: =G4*W136/1000 -> 0 | X166: =H4*X136/1000 -> 0 | Y166: =I4*Y136/1000 -> 0 | Z166: =J4*Z136/1000 -> 0 | AA166: =K4*AA136/1000 -> 0 | AB166: =L4*AB136/1000 -> 0 | AG166: =AG136 -> 00:00:00 | AH166: =A4*AH136/1000 -> 0 | AI166: =B4*AI136/1000 -> 0 | AJ166: =C4*AJ136/1000 -> 0 | AK166: =D4*AK136/1000 -> 0 | AL166: =E4*AL136/1000 -> 0 | AM166: =F4*AM136/1000 -> 0 | AN166: =G4*AN136/1000 -> 0 | AO166: =H4*AO136/1000 -> 0 | AP166: =I4*AP136/1000 -> 0 | AQ166: =J4*AQ136/1000 -> 0 | AR166: =K4*AR136/1000 -> 0 | AS166: =L4*AS136/1000 -> 0
P167: =P107 -> 00:00:00 | Q167: 0 | R167: 0 | S167: 0 | T167: 0 | U167: 0 | V167: 0 | W167: 0 | X167: 0 | Y167: 0 | Z167: 0 | AA167: 0 | AB167: 0 | AG167: =#REF! ->  | AH167: 0 | AI167: 0 | AJ167: 0 | AK167: 0 | AL167: 0 | AM167: 0 | AN167: 0 | AO167: 0 | AP167: 0 | AQ167: 0 | AR167: 0 | AS167: 0
P168: 00:00:00 | Q168: 0 | R168: 0 | S168: 0 | T168: 0 | U168: 0 | V168: 0 | W168: 0 | X168: 0 | Y168: 0 | Z168: 0 | AA168: 0 | AB168: 0 | AG168: =#REF! ->  | AH168: 0 | AI168: 0 | AJ168: 0 | AK168: 0 | AL168: 0 | AM168: 0 | AN168: 0 | AO168: 0 | AP168: 0 | AQ168: 0 | AR168: 0 | AS168: 0
M169: Daily | N169: w/o EV | P169: 00:00:00 | Q169: 0 | R169: 0 | S169: 0 | T169: 0 | U169: 0 | V169: 0 | W169: 0 | X169: 0 | Y169: 0 | Z169: 0 | AA169: 0 | AB169: 0 | AG169: =#REF! ->  | AH169: 0 | AI169: 0 | AJ169: 0 | AK169: 0 | AL169: 0 | AM169: 0 | AN169: 0 | AO169: 0 | AP169: 0 | AQ169: 0 | AR169: 0 | AS169: 0
P170: 00:00:00 | Q170: 0 | R170: 0 | S170: 0 | T170: 0 | U170: 3.027926394e-05 | V170: 0.0008092475551 | W170: 1.909228457e-05 | X170: 0 | Y170: 0 | Z170: 0 | AA170: 0 | AB170: 0 | AG170: =#REF! ->  | AH170: 0 | AI170: 0 | AJ170: 0 | AK170: 0 | AL170: 3.027926394e-05 | AM170: 0.0008092475551 | AN170: 1.909228457e-05 | AO170: 0 | AP170: 0 | AQ170: 0 | AR170: 0 | AS170: 0
P171: 00:00:00 | Q171: 0 | R171: 0 | S171: 0 | T171: 0.001553508484 | U171: 0.007092065863 | V171: 0.01057270907 | W171: 0.0048873663 | X171: 0.002992492707 | Y171: 0.0006013511319 | Z171: 0 | AA171: 0 | AB171: 0 | AG171: =#REF! ->  | AH171: 0 | AI171: 0 | AJ171: 0 | AK171: 0.001553508484 | AL171: 0.007092065863 | AM171: 0.01057270907 | AN171: 0.0048873663 | AO171: 0.002992492707 | AP171: 0.0006013511319 | AQ171: 0 | AR171: 0 | AS171: 0
P172: 00:00:00 | Q172: 0 | R172: 9.561255077e-06 | S172: 0.008292742192 | T172: 0.02355443896 | U172: 0.04389575181 | V172: 0.0541496726 | W172: 0.03435497034 | X172: 0.03058234185 | Y172: 0.03220983147 | Z172: 0.02128117366 | AA172: 0.0004354259666 | AB172: 0 | AG172: =AG112 -> 00:00:00 | AH172: 0 | AI172: 9.561255077e-06 | AJ172: 0.008292742192 | AK172: 0.02355443896 | AL172: 0.04389575181 | AM172: 0.0541496726 | AN172: 0.03435497034 | AO172: 0.03058234185 | AP172: 0.03220983147 | AQ172: 0.02128117366 | AR172: 0.0004354259666 | AS172: 0
P173: 00:00:00 | Q173: 0.01884435676 | R173: 0.01762691333 | S173: 0.04694209903 | T173: 0.08416188836 | U173: 0.1193347824 | V173: 0.1425869921 | W173: 0.1063922795 | X173: 0.1056636707 | Y173: 0.1258260802 | Z173: 0.09675558728 | AA173: 0.03966506718 | AB173: 0.03037455315 | AG173: 00:00:00 | AH173: 0.01884435676 | AI173: 0.01762691333 | AJ173: 0.04694209903 | AK173: 0.08416188836 | AL173: 0.1193347824 | AM173: 0.1425869921 | AN173: 0.1063922795 | AO173: 0.1056636707 | AP173: 0.1258260802 | AQ173: 0.09675558728 | AR173: 0.03966506718 | AS173: 0.03037455315
P174: 00:00:00 | Q174: 0.08419828567 | R174: 0.0677845684 | S174: 0.1087013919 | T174: 0.1513893031 | U174: 0.1950112967 | V174: 0.2285879848 | W174: 0.1789149846 | X174: 0.1877441263 | Y174: 0.2296221979 | Z174: 0.2004074535 | AA174: 0.1420859527 | AB174: 0.1343264341 | AG174: 00:00:00 | AH174: 0.08419828567 | AI174: 0.0677845684 | AJ174: 0.1087013919 | AK174: 0.1513893031 | AL174: 0.1950112967 | AM174: 0.2285879848 | AN174: 0.1789149846 | AO174: 0.1877441263 | AP174: 0.2296221979 | AQ174: 0.2004074535 | AR174: 0.1420859527 | AS174: 0.1343264341
P175: 00:00:00 | Q175: 0.1617031237 | R175: 0.115021677 | S175: 0.1601548397 | T175: 0.2085482426 | U175: 0.2544450476 | V175: 0.3009242763 | W175: 0.2451735503 | X175: 0.2557137163 | Y175: 0.3032027207 | Z175: 0.2813312713 | AA175: 0.2310292839 | AB175: 0.2490210255 | AG175: 00:00:00 | AH175: 0.1617031237 | AI175: 0.115021677 | AJ175: 0.1601548397 | AK175: 0.2085482426 | AL175: 0.2544450476 | AM175: 0.3009242763 | AN175: 0.2451735503 | AO175: 0.2557137163 | AP175: 0.3032027207 | AQ175: 0.2813312713 | AR175: 0.2310292839 | AS175: 0.2490210255
P176: 00:00:00 | Q176: 0.2167187883 | R176: 0.1533351187 | S176: 0.194717379 | T176: 0.2529339484 | U176: 0.3012730679 | V176: 0.345426798 | W176: 0.2881392064 | X176: 0.3021168421 | Y176: 0.3513925865 | Z176: 0.3357025626 | AA176: 0.2897955707 | AB176: 0.3206843451 | AG176: 00:00:00 | AH176: 0.2167187883 | AI176: 0.1533351187 | AJ176: 0.194717379 | AK176: 0.2529339484 | AL176: 0.3012730679 | AM176: 0.345426798 | AN176: 0.2881392064 | AO176: 0.3021168421 | AP176: 0.3513925865 | AQ176: 0.3357025626 | AR176: 0.2897955707 | AS176: 0.3206843451
P177: 00:00:00 | Q177: 0.2459533057 | R177: 0.1724578227 | S177: 0.2144775091 | T177: 0.2784474453 | U177: 0.3239598351 | V177: 0.3711426522 | W177: 0.3044214154 | X177: 0.3212975925 | Y177: 0.3631510813 | Z177: 0.3565830872 | AA177: 0.3003854172 | AB177: 0.3558187726 | AG177: 00:00:00 | AH177: 0.2459533057 | AI177: 0.1724578227 | AJ177: 0.2144775091 | AK177: 0.2784474453 | AL177: 0.3239598351 | AM177: 0.3711426522 | AN177: 0.3044214154 | AO177: 0.3212975925 | AP177: 0.3631510813 | AQ177: 0.3565830872 | AR177: 0.3003854172 | AS177: 0.3558187726
P178: 00:00:00 | Q178: 0.2504859052 | R178: 0.1727653497 | S178: 0.2195313426 | T178: 0.2771849898 | U178: 0.3168884957 | V178: 0.3692685905 | W178: 0.3059452079 | X178: 0.3210596073 | Y178: 0.3601487791 | Z178: 0.345167422 | AA178: 0.2895031823 | AB178: 0.3463222436 | AG178: 00:00:00 | AH178: 0.2504859052 | AI178: 0.1727653497 | AJ178: 0.2195313426 | AK178: 0.2771849898 | AL178: 0.3168884957 | AM178: 0.3692685905 | AN178: 0.3059452079 | AO178: 0.3210596073 | AP178: 0.3601487791 | AQ178: 0.345167422 | AR178: 0.2895031823 | AS178: 0.3463222436
P179: 00:00:00 | Q179: 0.2298337862 | R179: 0.1641103927 | S179: 0.2054309062 | T179: 0.2565342715 | U179: 0.2926693519 | V179: 0.3406140285 | W179: 0.2850387209 | X179: 0.2993383583 | Y179: 0.3296963005 | Z179: 0.2959341322 | AA179: 0.2573553875 | AB179: 0.3127330546 | AG179: 00:00:00 | AH179: 0.2298337862 | AI179: 0.1641103927 | AJ179: 0.2054309062 | AK179: 0.2565342715 | AL179: 0.2926693519 | AM179: 0.3406140285 | AN179: 0.2850387209 | AO179: 0.2993383583 | AP179: 0.3296963005 | AQ179: 0.2959341322 | AR179: 0.2573553875 | AS179: 0.3127330546
P180: 00:00:00 | Q180: 0.1863743677 | R180: 0.1393049772 | S180: 0.169529302 | T180: 0.22176337 | U180: 0.2460490173 | V180: 0.2932245487 | W180: 0.2436443863 | X180: 0.2540852092 | Y180: 0.2768737809 | Z180: 0.2424843792 | AA180: 0.2056874077 | AB180: 0.2512016531 | AG180: 00:00:00 | AH180: 0.1863743677 | AI180: 0.1393049772 | AJ180: 0.169529302 | AK180: 0.22176337 | AL180: 0.2460490173 | AM180: 0.2932245487 | AN180: 0.2436443863 | AO180: 0.2540852092 | AP180: 0.2768737809 | AQ180: 0.2424843792 | AR180: 0.2056874077 | AS180: 0.2512016531
P181: 00:00:00 | Q181: 0.1337481386 | R181: 0.1044473483 | S181: 0.1292358917 | T181: 0.1720248658 | U181: 0.1818241625 | V181: 0.2269444219 | W181: 0.188063073 | X181: 0.1958656573 | Y181: 0.2026762423 | Z181: 0.1698777578 | AA181: 0.1268844013 | AB181: 0.1611978551 | AG181: 00:00:00 | AH181: 0.1337481386 | AI181: 0.1044473483 | AJ181: 0.1292358917 | AK181: 0.1720248658 | AL181: 0.1818241625 | AM181: 0.2269444219 | AN181: 0.188063073 | AO181: 0.1958656573 | AP181: 0.2026762423 | AQ181: 0.1698777578 | AR181: 0.1268844013 | AS181: 0.1611978551
P182: 00:00:00 | Q182: 0.0583842692 | R182: 0.05560666019 | S182: 0.0762338572 | T182: 0.1035715758 | U182: 0.1093938278 | V182: 0.1437234015 | W182: 0.119480197 | X182: 0.1200143369 | Y182: 0.11288678 | Z182: 0.07762019529 | AA182: 0.04351330837 | AB182: 0.05492958051 | AG182: 00:00:00 | AH182: 0.0583842692 | AI182: 0.05560666019 | AJ182: 0.0762338572 | AK182: 0.1035715758 | AL182: 0.1093938278 | AM182: 0.1437234015 | AN182: 0.119480197 | AO182: 0.1200143369 | AP182: 0.11288678 | AQ182: 0.07762019529 | AR182: 0.04351330837 | AS182: 0.05492958051
P183: 00:00:00 | Q183: 0.001360908015 | R183: 0.01270681458 | S183: 0.02637372587 | T183: 0.03885182501 | U183: 0.04597209263 | V183: 0.06371083563 | W183: 0.05100278486 | X183: 0.04655708265 | Y183: 0.03341335748 | Z183: 0.008688439138 | AA183: 0.0007957468147 | AB183: 0.001203125761 | AG183: 00:00:00 | AH183: 0.001360908015 | AI183: 0.01270681458 | AJ183: 0.02637372587 | AK183: 0.03885182501 | AL183: 0.04597209263 | AM183: 0.06371083563 | AN183: 0.05100278486 | AO183: 0.04655708265 | AP183: 0.03341335748 | AQ183: 0.008688439138 | AR183: 0.0007957468147 | AS183: 0.001203125761
P184: 00:00:00 | Q184: 8.133828425e-07 | R184: 0.0002663101939 | S184: 0.0008671628922 | T184: 0.005235675162 | U184: 0.01117521673 | V184: 0.01830913749 | W184: 0.01142364 | X184: 0.007814259051 | Y184: 0.001952835367 | Z184: 0.0001770736591 | AA184: 0 | AB184: 0 | AG184: 00:00:00 | AH184: 8.133828425e-07 | AI184: 0.0002663101939 | AJ184: 0.0008671628922 | AK184: 0.005235675162 | AL184: 0.01117521673 | AM184: 0.01830913749 | AN184: 0.01142364 | AO184: 0.007814259051 | AP184: 0.001952835367 | AQ184: 0.0001770736591 | AR184: 0 | AS184: 0
N185: with EV | P185: 00:00:00 | Q185: 0 | R185: 0 | S185: 6.793537286e-06 | T185: 9.63404779e-05 | U185: 0.0005892945625 | V185: 0.003578295966 | W185: 0.002645182226 | X185: 0.0001939109304 | Y185: 2.836350668e-05 | Z185: 0 | AA185: 0 | AB185: 0 | AG185: 00:00:00 | AH185: 0 | AI185: 0 | AJ185: 6.793537286e-06 | AK185: 9.63404779e-05 | AL185: 0.0005892945625 | AM185: 0.003578295966 | AN185: 0.002645182226 | AO185: 0.0001939109304 | AP185: 2.836350668e-05 | AQ185: 0 | AR185: 0 | AS185: 0
P186: 00:00:00 | Q186: 0 | R186: 0 | S186: 0 | T186: 0 | U186: 7.644738785e-06 | V186: 7.672114066e-05 | W186: 5.631285804e-05 | X186: 8.375574669e-07 | Y186: 0 | Z186: 0 | AA186: 0 | AB186: 0 | AG186: 00:00:00 | AH186: 0 | AI186: 0 | AJ186: 0 | AK186: 0 | AL186: 7.644738785e-06 | AM186: 7.672114066e-05 | AN186: 5.631285804e-05 | AO186: 8.375574669e-07 | AP186: 0 | AQ186: 0 | AR186: 0 | AS186: 0
P187: 00:00:00 | Q187: 0 | R187: 0 | S187: 0 | T187: 0 | U187: 0 | V187: 0 | W187: 0 | X187: 0 | Y187: 0 | Z187: 0 | AA187: 0 | AB187: 0 | AG187: 00:00:00 | AH187: 0 | AI187: 0 | AJ187: 0 | AK187: 0 | AL187: 0 | AM187: 0 | AN187: 0 | AO187: 0 | AP187: 0 | AQ187: 0 | AR187: 0 | AS187: 0
P188: 00:00:00 | Q188: 0 | R188: 0 | S188: 0 | T188: 0 | U188: 0 | V188: 0 | W188: 0 | X188: 0 | Y188: 0 | Z188: 0 | AA188: 0 | AB188: 0 | AG188: 00:00:00 | AH188: 0 | AI188: 0 | AJ188: 0 | AK188: 0 | AL188: 0 | AM188: 0 | AN188: 0 | AO188: 0 | AP188: 0 | AQ188: 0 | AR188: 0 | AS188: 0
P189: 00:00:00 | Q189: 0 | R189: 0 | S189: 0 | T189: 0 | U189: 0 | V189: 0 | W189: 0 | X189: 0 | Y189: 0 | Z189: 0 | AA189: 0 | AB189: 0 | AG189: 00:00:00 | AH189: 0 | AI189: 0 | AJ189: 0 | AK189: 0 | AL189: 0 | AM189: 0 | AN189: 0 | AO189: 0 | AP189: 0 | AQ189: 0 | AR189: 0 | AS189: 0
P190: daily co2 savings | Q190: =SUM(Q166:Q189) -> 1.587606049 | R190: =SUM(R166:R189) -> 1.175443514 | S190: 1.560494943 | T190: 2.075851689 | U190: 2.449611231 | V190: 2.913650314 | W190: 2.36960237 | X190: 2.451040042 | Y190: 2.723682288 | Z190: 2.432010535 | AA190: 1.927136152 | AB190: 2.217812643 | AG190: daily co2 savings | AH190: =SUM(AH166:AH189) -> 1.587606049 | AI190: =SUM(AI166:AI189) -> 1.175443514 | AJ190: 1.560494943 | AK190: 2.075851689 | AL190: 2.449611231 | AM190: 2.913650314 | AN190: 2.36960237 | AO190: 2.451040042 | AP190: 2.723682288 | AQ190: 2.432010535 | AR190: 1.927136152 | AS190: 2.217812643
P191: monthly savings | Q191: =Q190*Q$1 -> 49.2157875 | R191: =R190*R$1 -> 32.9124184 | S191: 48.37534323 | T191: 62.27555066 | U191: 75.93794815 | V191: 87.40950942 | W191: 73.45767347 | X191: 75.98224129 | Y191: 81.71046865 | Z191: 75.39232658 | AA191: 57.81408455 | AB191: 68.75219193 | AC191: =SUM(Q191:AB191) -> 789.2355438 | AD191: molH+eq/y | AG191: monthly savings | AH191: =AH190*AH$1 -> 49.2157875 | AI191: =AI190*AI$1 -> 32.9124184 | AJ191: 48.37534323 | AK191: 62.27555066 | AL191: 75.93794815 | AM191: 87.40950942 | AN191: 73.45767347 | AO191: 75.98224129 | AP191: 81.71046865 | AQ191: 75.39232658 | AR191: 57.81408455 | AS191: 68.75219193 | AT191: =SUM(AH191:AS191) -> 789.2355438 | AU191: molH+eq/y
AB193: OR | AC193: =AC191/$M$36 -> 789.2355438 | AD193: molH+eq/y*kWp | AS193: OR | AT193: =AT191/$M$36 -> 789.2355438 | AU193: molH+eq/y*kWp
M198: Minutely | N198: w/o EV
P199: TIER 1 | Q199: FR - Hourly fossil resource use [MJprim/MWh] - average mix | AG199: TIER 2 | AH199: FR - Hourly fossil resource use [MJprim/MWh] - marginal mix
P200: hour | Q200: Jan | R200: Feb | S200: Mar | T200: Apr | U200: May | V200: Jun | W200: Jul | X200: Aug | Y200: Sep | Z200: Oct | AA200: Nov | AB200: Dec | AG200: hour | AH200: Jan | AI200: Feb | AJ200: Mar | AK200: Apr | AL200: May | AM200: Jun | AN200: Jul | AO200: Aug | AP200: Sep | AQ200: Oct | AR200: Nov | AS200: Dec
P201: 00:00:00 | Q201: 5110.879873 | R201: 4428.569252 | S201: 5106.227633 | T201: 5475.592737 | U201: 5472.351152 | V201: 5402.901278 | W201: 5682.183916 | X201: 5963.695901 | Y201: 6644.722467 | Z201: 6591.008716 | AA201: 5805.967247 | AB201: 5401.004927 | AG201: 00:00:00 | AH201: 4821.988265 | AI201: 3587.714979 | AJ201: 2631.775465 | AK201: 3842.037718 | AL201: 3964.285027 | AM201: 4360.094685 | AN201: 4371.500852 | AO201: 3932.989367 | AP201: 5533.288885 | AQ201: 6336.841647 | AR201: 5604.387062 | AS201: 5962.076802
P202: 01:00:00 | Q202: 5209.70895 | R202: 4525.906722 | S202: 5261.279946 | T202: 5592.640624 | U202: 5572.894951 | V202: 5545.855473 | W202: 5809.130978 | X202: 6125.072704 | Y202: 6741.200199 | Z202: 6639.318236 | AA202: 5856.870742 | AB202: 5439.183427 | AG202: 01:00:00 | AH202: 3964.585153 | AI202: 2918.280478 | AJ202: 3181.481921 | AK202: 2966.18491 | AL202: 3374.933418 | AM202: 3979.422467 | AN202: 3653.332444 | AO202: 4113.379282 | AP202: 5046.477632 | AQ202: 6419.723234 | AR202: 5623.720322 | AS202: 5456.600824
P203: 02:00:00 | Q203: 5274.463742 | R203: 4593.455283 | S203: 5352.532501 | T203: 5709.176687 | U203: 5642.320818 | V203: 5682.411312 | W203: 5943.429 | X203: 6244.847209 | Y203: 6833.776705 | Z203: 6687.656753 | AA203: 5926.303536 | AB203: 5490.636146 | AG203: 02:00:00 | AH203: 3706.395677 | AI203: 3112.894971 | AJ203: 3182.486988 | AK203: 3465.163277 | AL203: 3953.157615 | AM203: 4178.473102 | AN203: 3807.000993 | AO203: 3897.401053 | AP203: 4387.409499 | AQ203: 5394.636372 | AR203: 5306.918532 | AS203: 5069.200552
P204: 03:00:00 | Q204: 5302.738116 | R204: 4662.286417 | S204: 5401.16224 | T204: 5763.67301 | U204: 5681.285109 | V204: 5734.045079 | W204: 6043.779967 | X204: 6313.571147 | Y204: 6911.091875 | Z204: 6796.448208 | AA204: 5926.411536 | AB204: 5536.097329 | AG204: 03:00:00 | AH204: 3825.176456 | AI204: 3684.064737 | AJ204: 3640.263183 | AK204: 4456.670645 | AL204: 4487.475814 | AM204: 5114.282388 | AN204: 5636.026007 | AO204: 5001.082126 | AP204: 4569.960115 | AQ204: 6634.238268 | AR204: 5545.495466 | AS204: 5828.71612
P205: 04:00:00 | Q205: 5314.301673 | R205: 4687.549559 | S205: 5433.249797 | T205: 5793.474795 | U205: 5733.561996 | V205: 5795.428936 | W205: 6147.917754 | X205: 6417.332524 | Y205: 6985.522015 | Z205: 6821.660012 | AA205: 5944.792886 | AB205: 5550.865988 | AG205: 04:00:00 | AH205: 4178.231943 | AI205: 3330.794294 | AJ205: 4435.987759 | AK205: 4984.684317 | AL205: 5586.619783 | AM205: 4367.283175 | AN205: 4855.808653 | AO205: 5649.888723 | AP205: 5354.535129 | AQ205: 6394.903752 | AR205: 6695.763365 | AS205: 6374.969467
P206: 05:00:00 | Q206: 5313.328721 | R206: 4657.430227 | S206: 5450.893357 | T206: 5810.33283 | U206: 5765.531869 | V206: 5826.931659 | W206: 6218.752582 | X206: 6486.208707 | Y206: 7025.601494 | Z206: 6846.963817 | AA206: 5994.850684 | AB206: 5561.235178 | AG206: 05:00:00 | AH206: 4535.769164 | AI206: 3500.116351 | AJ206: 4347.755621 | AK206: 4716.1692 | AL206: 5187.582525 | AM206: 4817.906488 | AN206: 4681.023669 | AO206: 5060.834945 | AP206: 5196.105861 | AQ206: 6481.614179 | AR206: 5856.44425 | AS206: 6272.369848
P207: 06:00:00 | Q207: 5259.706728 | R207: 4542.891822 | S207: 5335.901683 | T207: 5776.281458 | U207: 5761.201962 | V207: 5829.491187 | W207: 6239.459086 | X207: 6433.709019 | Y207: 6985.722704 | Z207: 6843.601014 | AA207: 5973.758496 | AB207: 5516.282327 | AG207: 06:00:00 | AH207: 3705.84162 | AI207: 2764.486066 | AJ207: 2555.701813 | AK207: 4500.682769 | AL207: 4651.206599 | AM207: 4555.974145 | AN207: 4314.020326 | AO207: 4190.959035 | AP207: 4909.552147 | AQ207: 5051.011213 | AR207: 5510.296708 | AS207: 5671.033788
P208: 07:00:00 | Q208: 5152.316703 | R208: 4394.792009 | S208: 5073.157624 | T208: 5612.418384 | U208: 5581.440932 | V208: 5648.025333 | W208: 6166.240955 | X208: 6382.004369 | Y208: 6819.485443 | Z208: 6579.796654 | AA208: 5828.891236 | AB208: 5415.439196 | AG208: 07:00:00 | AH208: 4095.932033 | AI208: 3327.966484 | AJ208: 2160.009967 | AK208: 3829.1567 | AL208: 3549.176763 | AM208: 3850.79421 | AN208: 4810.64136 | AO208: 4314.708662 | AP208: 4906.997064 | AQ208: 4361.836947 | AR208: 5051.250369 | AS208: 4630.619812
P209: 08:00:00 | Q209: 4993.022054 | R209: 4325.500192 | S209: 4840.76053 | T209: 5424.901837 | U209: 5266.673375 | V209: 5348.818607 | W209: 5844.896166 | X209: 6147.454579 | Y209: 6704.425177 | Z209: 6489.492885 | AA209: 5723.518212 | AB209: 5338.906423 | AG209: 08:00:00 | AH209: 3161.19465 | AI209: 2529.165951 | AJ209: 3101.474569 | AK209: 3615.942553 | AL209: 3426.833792 | AM209: 3169.139214 | AN209: 2990.620298 | AO209: 3460.634697 | AP209: 5018.619096 | AQ209: 3776.858209 | AR209: 4423.695 | AS209: 3802.946774
P210: 09:00:00 | Q210: 4808.315283 | R210: 4166.483819 | S210: 4637.091964 | T210: 5183.967562 | U210: 4951.198319 | V210: 5080.069707 | W210: 5492.519946 | X210: 5737.47386 | Y210: 6341.88775 | Z210: 6243.874803 | AA210: 5484.994109 | AB210: 5175.305577 | AG210: 09:00:00 | AH210: 2161.647566 | AI210: 3604.306778 | AJ210: 5208.197937 | AK210: 4800.708665 | AL210: 6352.877135 | AM210: 6082.979792 | AN210: 7141.49069 | AO210: 4317.905762 | AP210: 4392.285003 | AQ210: 4858.000104 | AR210: 4744.358414 | AS210: 4246.239514
P211: 10:00:00 | Q211: 4630.41169 | R211: 4027.018899 | S211: 4446.401991 | T211: 5022.705633 | U211: 4646.93213 | V211: 4858.685488 | W211: 5168.150568 | X211: 5353.313173 | Y211: 5891.645929 | Z211: 5855.725264 | AA211: 5250.867418 | AB211: 5013.483551 | AG211: 10:00:00 | AH211: 5001.227581 | AI211: 3435.836265 | AJ211: 5910.113141 | AK211: 7695.684582 | AL211: 7477.590331 | AM211: 7679.203035 | AN211: 6030.33948 | AO211: 8596.882263 | AP211: 5685.92758 | AQ211: 5529.916093 | AR211: 4268.722754 | AS211: 4472.942297
P212: 11:00:00 | Q212: 4538.796247 | R212: 3936.76739 | S212: 4365.886298 | T212: 4913.509324 | U212: 4511.089352 | V212: 4740.34939 | W212: 4995.650127 | X212: 5136.20623 | Y212: 5640.585651 | Z212: 5579.007236 | AA212: 5111.467388 | AB212: 4924.369751 | AG212: 11:00:00 | AH212: 4494.484218 | AI212: 3722.373748 | AJ212: 4035.728965 | AK212: 5717.345662 | AL212: 5787.478557 | AM212: 6918.360828 | AN212: 5157.591756 | AO212: 5297.806775 | AP212: 4347.642536 | AQ212: 5889.034212 | AR212: 4817.191685 | AS212: 3448.941903
M213: Daily | N213: w/o EV, two-phase tariff | P213: 12:00:00 | Q213: 4485.383473 | R213: 3880.19007 | S213: 4328.785469 | T213: 4830.280104 | U213: 4409.419208 | V213: 4634.274961 | W213: 4862.77654 | X213: 5014.840606 | Y213: 5489.209681 | Z213: 5425.903001 | AA213: 5084.87258 | AB213: 4875.4165 | AG213: 12:00:00 | AH213: 3006.694346 | AI213: 2996.278783 | AJ213: 3164.907697 | AK213: 4807.731854 | AL213: 6816.906665 | AM213: 7091.737673 | AN213: 4738.541046 | AO213: 5078.655888 | AP213: 4879.974725 | AQ213: 6688.112956 | AR213: 5057.341557 | AS213: 4182.561418
P214: 13:00:00 | Q214: 4447.619988 | R214: 3860.508053 | S214: 4276.389009 | T214: 4763.881805 | U214: 4348.85687 | V214: 4567.710391 | W214: 4758.868142 | X214: 4932.082116 | Y214: 5414.40402 | Z214: 5299.860604 | AA214: 5069.844267 | AB214: 4862.899209 | AG214: 13:00:00 | AH214: 4134.695787 | AI214: 3323.969936 | AJ214: 3657.484153 | AK214: 4452.166348 | AL214: 4802.1405 | AM214: 5558.137094 | AN214: 4744.114357 | AO214: 4866.814682 | AP214: 4784.427614 | AQ214: 5993.28243 | AR214: 5165.19896 | AS214: 4149.243702
P215: 14:00:00 | Q215: 4481.999839 | R215: 3905.961142 | S215: 4307.623638 | T215: 4776.350444 | U215: 4325.829531 | V215: 4519.91085 | W215: 4703.162962 | X215: 4897.330163 | Y215: 5416.556041 | Z215: 5293.693382 | AA215: 5086.97878 | AB215: 4917.005257 | AG215: 14:00:00 | AH215: 2640.113576 | AI215: 2565.480658 | AJ215: 2972.127767 | AK215: 5112.344674 | AL215: 4351.127464 | AM215: 4835.164727 | AN215: 5585.563341 | AO215: 4163.722177 | AP215: 4754.280862 | AQ215: 5724.498206 | AR215: 3712.280906 | AS215: 3644.01208
P216: 15:00:00 | Q216: 4579.959538 | R216: 3993.945096 | S216: 4372.74245 | T216: 4818.486172 | U216: 4352.054036 | V216: 4509.975748 | W216: 4689.987324 | X216: 4891.259659 | Y216: 5448.705332 | Z216: 5336.754234 | AA216: 5181.139942 | AB216: 5000.645607 | AG216: 15:00:00 | AH216: 3059.039301 | AI216: 2759.297927 | AJ216: 5689.140545 | AK216: 4381.670228 | AL216: 5750.598401 | AM216: 4765.378838 | AN216: 4313.181195 | AO216: 4307.928811 | AP216: 5385.782571 | AQ216: 5341.949563 | AR216: 3779.085922 | AS216: 4196.130959
P217: 16:00:00 | Q217: 4713.6339 | R217: 4085.416988 | S217: 4483.910116 | T217: 4875.331621 | U217: 4408.02941 | V217: 4547.49941 | W217: 4704.177492 | X217: 4887.135825 | Y217: 5521.890931 | Z217: 5470.208382 | AA217: 5426.673324 | AB217: 5225.997728 | AG217: 16:00:00 | AH217: 4547.566975 | AI217: 4677.387572 | AJ217: 4502.869752 | AK217: 5265.01525 | AL217: 6590.464706 | AM217: 4891.633559 | AN217: 5876.239701 | AO217: 5373.143602 | AP217: 4995.467617 | AQ217: 6588.55982 | AR217: 3679.26966 | AS217: 5809.359515
... 151 more rows
